Workbook

Sheet Leistung u. Drehmoment
A1: n/min-1 | C1: 3000 | D1: 4000 | E1: 4500 | F1: 5000 | G1: 5500 | H1: 6000 | I1: 6500 | J1: 7000 | K1: 7500 | L1: 8000 | M1: 8500
A2: M/Nm
A3: P/kW | C3: 11 | D3: 20 | E3: 25 | F3: 30 | G3: 35 | H3: 39 | I3: 42 | J3: 43.5 | K3: 43 | L3: 40 | M3: 34
A4: Mberechnet/Nm | C4: =IF(C1="","",IF(C2="",C3/C1*9550,C2)) -> 35.0 | D4: =IF(D1="",C4,IF(D2="",D3/D1*9550,D2)) -> 47.8 | E4: =IF(E1="",D4,IF(E2="",E3/E1*9550,E2)) -> 53.1 | F4: =IF(F1="",E4,IF(F2="",F3/F1*9550,F2)) -> 57.3 | G4: =IF(G1="",F4,IF(G2="",G3/G1*9550,G2)) -> 60.8 | H4: =IF(H1="",G4,IF(H2="",H3/H1*9550,H2)) -> 62.1 | I4: =IF(I1="",H4,IF(I2="",I3/I1*9550,I2)) -> 61.7 | J4: =IF(J1="",I4,IF(J2="",J3/J1*9550,J2)) -> 59.3 | K4: =IF(K1="",J4,IF(K2="",K3/K1*9550,K2)) -> 54.8 | L4: =IF(L1="",K4,IF(L2="",L3/L1*9550,L2)) -> 47.8 | M4: =IF(M1="",L4,IF(M2="",M3/M1*9550,M2)) -> 38.2
A5: Pberechnet/kW | C5: =IF(C1="","",IF(C3="",C4*C1/9550,C3)) -> 11.0 | D5: =IF(D1="",C5,IF(D3="",D4*D1/9550,D3)) -> 20.0 | E5: =IF(E1="",D5,IF(E3="",E4*E1/9550,E3)) -> 25.0 | F5: =IF(F1="",E5,IF(F3="",F4*F1/9550,F3)) -> 30.0 | G5: =IF(G1="",F5,IF(G3="",G4*G1/9550,G3)) -> 35.0 | H5: =IF(H1="",G5,IF(H3="",H4*H1/9550,H3)) -> 39.0 | I5: =IF(I1="",H5,IF(I3="",I4*I1/9550,I3)) -> 42.0 | J5: =IF(J1="",I5,IF(J3="",J4*J1/9550,J3)) -> 43.5 | K5: =IF(K1="",J5,IF(K3="",K4*K1/9550,K3)) -> 43.0 | L5: =IF(L1="",K5,IF(L3="",L4*L1/9550,L3)) -> 40.0 | M5: =IF(M1="",L5,IF(M3="",M4*M1/9550,M3)) -> 34.0
A6: Pberechnet/PS | C6: =C5*1.36 -> 15.0 | D6: =D5*1.36 -> 27.2 | E6: =E5*1.36 -> 34.0 | F6: =F5*1.36 -> 40.8 | G6: =G5*1.36 -> 47.6 | H6: =H5*1.36 -> 53.0 | I6: =I5*1.36 -> 57.1 | J6: =J5*1.36 -> 59.2 | K6: =K5*1.36 -> 58.5 | L6: =L5*1.36 -> 54.4 | M6: =M5*1.36 -> 46.2
A7: KTM LC4 640, Bj 2001 Akrapovich Titan, Mikuni TM 42, Kanäle geglättet
A28: =A1 -> n/min-1 | B28: =IF(C1="","",C1) -> 3000 | C28: =IF(D1="","",D1) -> 4000 | D28: =IF(E1="","",E1) -> 4500 | E28: =IF(F1="","",F1) -> 5000 | F28: =IF(G1="","",G1) -> 5500 | G28: =IF(H1="","",H1) -> 6000 | H28: =IF(I1="","",I1) -> 6500 | I28: =IF(J1="","",J1) -> 7000 | J28: =IF(K1="","",K1) -> 7500 | K28: =IF(L1="","",L1) -> 8000 | L28: =IF(M1="","",M1) -> 8500
A29: M/Nm | B29: =IF(B28="","",C4) -> 35.0 | C29: =IF(C28="","",D4) -> 47.8 | D29: =IF(D28="","",E4) -> 53.1 | E29: =IF(E28="","",F4) -> 57.3 | F29: =IF(F28="","",G4) -> 60.8 | G29: =IF(G28="","",H4) -> 62.1 | H29: =IF(H28="","",I4) -> 61.7 | I29: =IF(I28="","",J4) -> 59.3 | J29: =IF(J28="","",K4) -> 54.8 | K29: =IF(K28="","",L4) -> 47.8 | L29: =IF(L28="","",M4) -> 38.2
A30: P/kW | B30: =IF(B29="","",C5) -> 11.0 | C30: =IF(C29="","",D5) -> 20.0 | D30: =IF(D29="","",E5) -> 25.0 | E30: =IF(E29="","",F5) -> 30.0 | F30: =IF(F29="","",G5) -> 35.0 | G30: =IF(G29="","",H5) -> 39.0 | H30: =IF(H29="","",I5) -> 42.0 | I30: =IF(I29="","",J5) -> 43.5 | J30: =IF(J29="","",K5) -> 43.0 | K30: =IF(K29="","",L5) -> 40.0 | L30: =IF(L29="","",M5) -> 34.0
A31: P/PS | B31: =IF(B30="","",C6) -> 15.0 | C31: =IF(C30="","",D6) -> 27.2 | D31: =IF(D30="","",E6) -> 34.0 | E31: =IF(E30="","",F6) -> 40.8 | F31: =IF(F30="","",G6) -> 47.6 | G31: =IF(G30="","",H6) -> 53.0 | H31: =IF(H30="","",I6) -> 57.1 | I31: =IF(I30="","",J6) -> 59.2 | J31: =IF(J30="","",K6) -> 58.5 | K31: =IF(K30="","",L6) -> 54.4 | L31: =IF(L30="","",M6) -> 46.2

Sheet Getriebe- u. Zugkraftdiagramm
A1: ='Leistung u. Drehmoment'!A7 -> KTM LC4 640, Bj 2001 Akrapovich Titan, Mikuni TM 42, Kanäle geglättet
A2: Reifen | I2: Fahrzeug
A3: Breite mm | B3: Quer- schnitt | C3: Felge Zoll | D3: Auto/ Motorrad | F3: Udyn m | G3: Rollwider- standszahl | I3: Masse kg | J3: Breite m | K3: Höhe m | L3: Stirnfläche m² | N3: cW
A4: 160 | B4: 60 | C4: 17 | D4: M | F4: =IF(D4="M",(C4*25.4+2*B4/100*A4)*PI()*0.961/1000,(C4*25.4+2*B4/100*A4)*PI()*0.97129/1000) -> 1.883 | G4: 0.011 | I4: 225 | J4: 0.8 | K4: 1.7 | L4: =ROUND(J4*K4*0.83,2) -> 1.13 | N4: 0.45
A6: Übersetzungen | C6: zRitzel | D6: zKettenrad | E6: iPrimär | F6: 1. | G6: 2. | H6: 3. | I6: 4. | J6: 5. | K6: 6. | L6: 7. | M6: Schaltdrehzahl min-1
C7: 17 | D7: 42 | E7: =81/30 -> 2.70 | F7: =35/14 -> 2.50 | G7: =24/15 -> 1.60 | H7: =21/18 -> 1.17 | I7: =19/20 -> 0.95 | J7: 0.82
A8: Wirkungsgrad | C8: 0.95 | E8: 1.00 | F8: 0.97 | G8: 0.97 | H8: 0.97 | I8: 0.97 | J8: 0.97 | M8: 8500
O11: 1.15 | P11: 1.02
P12: 1.04
O14: Fahrwider- stands- parabeln
O15: j
O16: 9999 %
O17: 190 %
O18: 100 %
O19: 74 %
O20: 47 %
O21: 33 %
O22: 5 %
O23: 0 %
O24: -5 %
O25: 10 %
O27: Gang | P27: VSchalt
O28: 1.
O29: 2. | P29: 86
O30: 3. | P30: 113
O31: 4. | P31: 136
O32: 5.
O33: 6.
O34: 7.
C67: Gang | F67: 1 | G67: 2 | H67: 3 | I67: 4 | J67: 5 | K67: 6 | L67: 7
C68: Schaltdrehzahl, optimal | F68: =IF(F69="","",F69*($D$7/$C$7*$E$7*F7*60)/(3.6*$F$4)) -> 8500 | G68: =IF(G69="","",G69*($D$7/$C$7*$E$7*G7*60)/(3.6*$F$4)) -> 8123 | H68: =IF(H69="","",H69*($D$7/$C$7*$E$7*H7*60)/(3.6*$F$4)) -> 7783 | I68: =IF(I69="","",I69*($D$7/$C$7*$E$7*I7*60)/(3.6*$F$4)) -> 7627 | J68: =IF(J69="","",J69*($D$7/$C$7*$E$7*J7*60)/(3.6*$F$4)) -> 8500 | K68: =IF(K69="","",K69*($D$7/$C$7*$E$7*K7*60)/(3.6*$F$4)) ->  | L68: =IF(L69="","",L69*($D$7/$C$7*$E$7*L7*60)/(3.6*$F$4)) -> 
C69: Geschwindigkeit | F69: =IF(P28="",E114,P28) -> 58 | G69: =IF(P29="",E115,P29) -> 86 | H69: =IF(P30="",E116,P30) -> 113 | I69: =IF(P31="",E117,P31) -> 136 | J69: =IF(P32="",E118,P32) -> 176 | K69: =IF(P33="",E119,P33) ->  | L69: =IF(P34="",E120,P34) -> 
B72: Hub mm | C72: VKolben m/s | D72: Drehzahl min-1 | F72: V1. km/h | G72: V2. km/h | H72: V3. km/h | I72: V4. km/h | J72: V5. km/h | K72: V6. km/h | L72: V7. km/h
B73: 75 | C73: 30 | D73: =C73/B$73*30000 -> 12000 | F73: =IF(F$7="","",$F$4*3.6/($D$7/$C$7*$E$7)/F$7*$D73/60) -> 81 | G73: =IF(G$7="","",$F$4*3.6/($D$7/$C$7*$E$7)/G$7*$D73/60) -> 127 | H73: =IF(H$7="","",$F$4*3.6/($D$7/$C$7*$E$7)/H$7*$D73/60) -> 174 | I73: =IF(I$7="","",$F$4*3.6/($D$7/$C$7*$E$7)/I$7*$D73/60) -> 214 | J73: =IF(J$7="","",$F$4*3.6/($D$7/$C$7*$E$7)/J$7*$D73/60) -> 248 | K73: =IF(K$7="","",$F$4*3.6/($D$7/$C$7*$E$7)/K$7*$D73/60) ->  | L73: =IF(L$7="","",$F$4*3.6/($D$7/$C$7*$E$7)/L$7*$D73/60) -> 
C74: 29 | D74: =C74/B$73*30000 -> 11600 | F74: =IF(F$7="","",$F$4*3.6/($D$7/$C$7*$E$7)/F$7*$D74/60) -> 79 | G74: =IF(G$7="","",$F$4*3.6/($D$7/$C$7*$E$7)/G$7*$D74/60) -> 123 | H74: =IF(H$7="","",$F$4*3.6/($D$7/$C$7*$E$7)/H$7*$D74/60) -> 168 | I74: =IF(I$7="","",$F$4*3.6/($D$7/$C$7*$E$7)/I$7*$D74/60) -> 207 | J74: =IF(J$7="","",$F$4*3.6/($D$7/$C$7*$E$7)/J$7*$D74/60) -> 240 | K74: =IF(K$7="","",$F$4*3.6/($D$7/$C$7*$E$7)/K$7*$D74/60) ->  | L74: =IF(L$7="","",$F$4*3.6/($D$7/$C$7*$E$7)/L$7*$D74/60) -> 
C75: 28 | D75: =C75/B$73*30000 -> 11200 | F75: =IF(F$7="","",$F$4*3.6/($D$7/$C$7*$E$7)/F$7*$D75/60) -> 76 | G75: =IF(G$7="","",$F$4*3.6/($D$7/$C$7*$E$7)/G$7*$D75/60) -> 119 | H75: =IF(H$7="","",$F$4*3.6/($D$7/$C$7*$E$7)/H$7*$D75/60) -> 163 | I75: =IF(I$7="","",$F$4*3.6/($D$7/$C$7*$E$7)/I$7*$D75/60) -> 200 | J75: =IF(J$7="","",$F$4*3.6/($D$7/$C$7*$E$7)/J$7*$D75/60) -> 232 | K75: =IF(K$7="","",$F$4*3.6/($D$7/$C$7*$E$7)/K$7*$D75/60) ->  | L75: =IF(L$7="","",$F$4*3.6/($D$7/$C$7*$E$7)/L$7*$D75/60) -> 
C76: 27 | D76: =C76/B$73*30000 -> 10800 | F76: =IF(F$7="","",$F$4*3.6/($D$7/$C$7*$E$7)/F$7*$D76/60) -> 73 | G76: =IF(G$7="","",$F$4*3.6/($D$7/$C$7*$E$7)/G$7*$D76/60) -> 114 | H76: =IF(H$7="","",$F$4*3.6/($D$7/$C$7*$E$7)/H$7*$D76/60) -> 157 | I76: =IF(I$7="","",$F$4*3.6/($D$7/$C$7*$E$7)/I$7*$D76/60) -> 193 | J76: =IF(J$7="","",$F$4*3.6/($D$7/$C$7*$E$7)/J$7*$D76/60) -> 224 | K76: =IF(K$7="","",$F$4*3.6/($D$7/$C$7*$E$7)/K$7*$D76/60) ->  | L76: =IF(L$7="","",$F$4*3.6/($D$7/$C$7*$E$7)/L$7*$D76/60) -> 
C77: 26 | D77: =C77/B$73*30000 -> 10400 | F77: =IF(F$7="","",$F$4*3.6/($D$7/$C$7*$E$7)/F$7*$D77/60) -> 70 | G77: =IF(G$7="","",$F$4*3.6/($D$7/$C$7*$E$7)/G$7*$D77/60) -> 110 | H77: =IF(H$7="","",$F$4*3.6/($D$7/$C$7*$E$7)/H$7*$D77/60) -> 151 | I77: =IF(I$7="","",$F$4*3.6/($D$7/$C$7*$E$7)/I$7*$D77/60) -> 185 | J77: =IF(J$7="","",$F$4*3.6/($D$7/$C$7*$E$7)/J$7*$D77/60) -> 215 | K77: =IF(K$7="","",$F$4*3.6/($D$7/$C$7*$E$7)/K$7*$D77/60) ->  | L77: =IF(L$7="","",$F$4*3.6/($D$7/$C$7*$E$7)/L$7*$D77/60) -> 
C78: 25 | D78: =C78/B$73*30000 -> 10000 | F78: =IF(F$7="","",$F$4*3.6/($D$7/$C$7*$E$7)/F$7*$D78/60) -> 68 | G78: =IF(G$7="","",$F$4*3.6/($D$7/$C$7*$E$7)/G$7*$D78/60) -> 106 | H78: =IF(H$7="","",$F$4*3.6/($D$7/$C$7*$E$7)/H$7*$D78/60) -> 145 | I78: =IF(I$7="","",$F$4*3.6/($D$7/$C$7*$E$7)/I$7*$D78/60) -> 178 | J78: =IF(J$7="","",$F$4*3.6/($D$7/$C$7*$E$7)/J$7*$D78/60) -> 207 | K78: =IF(K$7="","",$F$4*3.6/($D$7/$C$7*$E$7)/K$7*$D78/60) ->  | L78: =IF(L$7="","",$F$4*3.6/($D$7/$C$7*$E$7)/L$7*$D78/60) -> 
C79: 24 | D79: =C79/B$73*30000 -> 9600 | F79: =IF(F$7="","",$F$4*3.6/($D$7/$C$7*$E$7)/F$7*$D79/60) -> 65 | G79: =IF(G$7="","",$F$4*3.6/($D$7/$C$7*$E$7)/G$7*$D79/60) -> 102 | H79: =IF(H$7="","",$F$4*3.6/($D$7/$C$7*$E$7)/H$7*$D79/60) -> 139 | I79: =IF(I$7="","",$F$4*3.6/($D$7/$C$7*$E$7)/I$7*$D79/60) -> 171 | J79: =IF(J$7="","",$F$4*3.6/($D$7/$C$7*$E$7)/J$7*$D79/60) -> 199 | K79: =IF(K$7="","",$F$4*3.6/($D$7/$C$7*$E$7)/K$7*$D79/60) ->  | L79: =IF(L$7="","",$F$4*3.6/($D$7/$C$7*$E$7)/L$7*$D79/60) -> 
C80: 23 | D80: =C80/B$73*30000 -> 9200 | F80: =IF(F$7="","",$F$4*3.6/($D$7/$C$7*$E$7)/F$7*$D80/60) -> 62 | G80: =IF(G$7="","",$F$4*3.6/($D$7/$C$7*$E$7)/G$7*$D80/60) -> 97 | H80: =IF(H$7="","",$F$4*3.6/($D$7/$C$7*$E$7)/H$7*$D80/60) -> 134 | I80: =IF(I$7="","",$F$4*3.6/($D$7/$C$7*$E$7)/I$7*$D80/60) -> 164 | J80: =IF(J$7="","",$F$4*3.6/($D$7/$C$7*$E$7)/J$7*$D80/60) -> 190 | K80: =IF(K$7="","",$F$4*3.6/($D$7/$C$7*$E$7)/K$7*$D80/60) ->  | L80: =IF(L$7="","",$F$4*3.6/($D$7/$C$7*$E$7)/L$7*$D80/60) -> 
C81: 22 | D81: =C81/B$73*30000 -> 8800 | F81: =IF(F$7="","",$F$4*3.6/($D$7/$C$7*$E$7)/F$7*$D81/60) -> 60 | G81: =IF(G$7="","",$F$4*3.6/($D$7/$C$7*$E$7)/G$7*$D81/60) -> 93 | H81: =IF(H$7="","",$F$4*3.6/($D$7/$C$7*$E$7)/H$7*$D81/60) -> 128 | I81: =IF(I$7="","",$F$4*3.6/($D$7/$C$7*$E$7)/I$7*$D81/60) -> 157 | J81: =IF(J$7="","",$F$4*3.6/($D$7/$C$7*$E$7)/J$7*$D81/60) -> 182 | K81: =IF(K$7="","",$F$4*3.6/($D$7/$C$7*$E$7)/K$7*$D81/60) ->  | L81: =IF(L$7="","",$F$4*3.6/($D$7/$C$7*$E$7)/L$7*$D81/60) -> 
C82: 21 | D82: =C82/B$73*30000 -> 8400 | F82: =IF(F$7="","",$F$4*3.6/($D$7/$C$7*$E$7)/F$7*$D82/60) -> 57 | G82: =IF(G$7="","",$F$4*3.6/($D$7/$C$7*$E$7)/G$7*$D82/60) -> 89 | H82: =IF(H$7="","",$F$4*3.6/($D$7/$C$7*$E$7)/H$7*$D82/60) -> 122 | I82: =IF(I$7="","",$F$4*3.6/($D$7/$C$7*$E$7)/I$7*$D82/60) -> 150 | J82: =IF(J$7="","",$F$4*3.6/($D$7/$C$7*$E$7)/J$7*$D82/60) -> 174 | K82: =IF(K$7="","",$F$4*3.6/($D$7/$C$7*$E$7)/K$7*$D82/60) ->  | L82: =IF(L$7="","",$F$4*3.6/($D$7/$C$7*$E$7)/L$7*$D82/60) -> 
C83: 20 | D83: =C83/B$73*30000 -> 8000 | F83: =IF(F$7="","",$F$4*3.6/($D$7/$C$7*$E$7)/F$7*$D83/60) -> 54 | G83: =IF(G$7="","",$F$4*3.6/($D$7/$C$7*$E$7)/G$7*$D83/60) -> 85 | H83: =IF(H$7="","",$F$4*3.6/($D$7/$C$7*$E$7)/H$7*$D83/60) -> 116 | I83: =IF(I$7="","",$F$4*3.6/($D$7/$C$7*$E$7)/I$7*$D83/60) -> 143 | J83: =IF(J$7="","",$F$4*3.6/($D$7/$C$7*$E$7)/J$7*$D83/60) -> 166 | K83: =IF(K$7="","",$F$4*3.6/($D$7/$C$7*$E$7)/K$7*$D83/60) ->  | L83: =IF(L$7="","",$F$4*3.6/($D$7/$C$7*$E$7)/L$7*$D83/60) -> 
C84: 19 | D84: =C84/B$73*30000 -> 7600 | F84: =IF(F$7="","",$F$4*3.6/($D$7/$C$7*$E$7)/F$7*$D84/60) -> 51 | G84: =IF(G$7="","",$F$4*3.6/($D$7/$C$7*$E$7)/G$7*$D84/60) -> 80 | H84: =IF(H$7="","",$F$4*3.6/($D$7/$C$7*$E$7)/H$7*$D84/60) -> 110 | I84: =IF(I$7="","",$F$4*3.6/($D$7/$C$7*$E$7)/I$7*$D84/60) -> 136 | J84: =IF(J$7="","",$F$4*3.6/($D$7/$C$7*$E$7)/J$7*$D84/60) -> 157 | K84: =IF(K$7="","",$F$4*3.6/($D$7/$C$7*$E$7)/K$7*$D84/60) ->  | L84: =IF(L$7="","",$F$4*3.6/($D$7/$C$7*$E$7)/L$7*$D84/60) -> 
C85: 18 | D85: =C85/B$73*30000 -> 7200 | F85: =IF(F$7="","",$F$4*3.6/($D$7/$C$7*$E$7)/F$7*$D85/60) -> 49 | G85: =IF(G$7="","",$F$4*3.6/($D$7/$C$7*$E$7)/G$7*$D85/60) -> 76 | H85: =IF(H$7="","",$F$4*3.6/($D$7/$C$7*$E$7)/H$7*$D85/60) -> 105 | I85: =IF(I$7="","",$F$4*3.6/($D$7/$C$7*$E$7)/I$7*$D85/60) -> 128 | J85: =IF(J$7="","",$F$4*3.6/($D$7/$C$7*$E$7)/J$7*$D85/60) -> 149 | K85: =IF(K$7="","",$F$4*3.6/($D$7/$C$7*$E$7)/K$7*$D85/60) ->  | L85: =IF(L$7="","",$F$4*3.6/($D$7/$C$7*$E$7)/L$7*$D85/60) -> 
C86: 17 | D86: =C86/B$73*30000 -> 6800 | F86: =IF(F$7="","",$F$4*3.6/($D$7/$C$7*$E$7)/F$7*$D86/60) -> 46 | G86: =IF(G$7="","",$F$4*3.6/($D$7/$C$7*$E$7)/G$7*$D86/60) -> 72 | H86: =IF(H$7="","",$F$4*3.6/($D$7/$C$7*$E$7)/H$7*$D86/60) -> 99 | I86: =IF(I$7="","",$F$4*3.6/($D$7/$C$7*$E$7)/I$7*$D86/60) -> 121 | J86: =IF(J$7="","",$F$4*3.6/($D$7/$C$7*$E$7)/J$7*$D86/60) -> 141 | K86: =IF(K$7="","",$F$4*3.6/($D$7/$C$7*$E$7)/K$7*$D86/60) ->  | L86: =IF(L$7="","",$F$4*3.6/($D$7/$C$7*$E$7)/L$7*$D86/60) -> 
C87: 16 | D87: =C87/B$73*30000 -> 6400 | F87: =IF(F$7="","",$F$4*3.6/($D$7/$C$7*$E$7)/F$7*$D87/60) -> 43 | G87: =IF(G$7="","",$F$4*3.6/($D$7/$C$7*$E$7)/G$7*$D87/60) -> 68 | H87: =IF(H$7="","",$F$4*3.6/($D$7/$C$7*$E$7)/H$7*$D87/60) -> 93 | I87: =IF(I$7="","",$F$4*3.6/($D$7/$C$7*$E$7)/I$7*$D87/60) -> 114 | J87: =IF(J$7="","",$F$4*3.6/($D$7/$C$7*$E$7)/J$7*$D87/60) -> 133 | K87: =IF(K$7="","",$F$4*3.6/($D$7/$C$7*$E$7)/K$7*$D87/60) ->  | L87: =IF(L$7="","",$F$4*3.6/($D$7/$C$7*$E$7)/L$7*$D87/60) -> 
C88: 15 | D88: =C88/B$73*30000 -> 6000 | F88: =IF(F$7="","",$F$4*3.6/($D$7/$C$7*$E$7)/F$7*$D88/60) -> 41 | G88: =IF(G$7="","",$F$4*3.6/($D$7/$C$7*$E$7)/G$7*$D88/60) -> 64 | H88: =IF(H$7="","",$F$4*3.6/($D$7/$C$7*$E$7)/H$7*$D88/60) -> 87 | I88: =IF(I$7="","",$F$4*3.6/($D$7/$C$7*$E$7)/I$7*$D88/60) -> 107 | J88: =IF(J$7="","",$F$4*3.6/($D$7/$C$7*$E$7)/J$7*$D88/60) -> 124 | K88: =IF(K$7="","",$F$4*3.6/($D$7/$C$7*$E$7)/K$7*$D88/60) ->  | L88: =IF(L$7="","",$F$4*3.6/($D$7/$C$7*$E$7)/L$7*$D88/60) -> 
A98: V1 | C98: =IF('Leistung u. Drehmoment'!C1="",0,IF(($F$7<=0),0,(3.6*$F$4*'Leistung u. Drehmoment'!C$1/($D$7/$C$7*$E$7*$F$7*60)))) -> 20 | D98: =IF('Leistung u. Drehmoment'!D1="",C98,IF(($F$7<=0),0,(3.6*$F$4*'Leistung u. Drehmoment'!D$1/($D$7/$C$7*$E$7*$F$7*60)))) -> 27 | E98: =IF('Leistung u. Drehmoment'!E1="",D98,IF(($F$7<=0),0,(3.6*$F$4*'Leistung u. Drehmoment'!E$1/($D$7/$C$7*$E$7*$F$7*60)))) -> 30 | F98: =IF('Leistung u. Drehmoment'!F1="",E98,IF(($F$7<=0),0,(3.6*$F$4*'Leistung u. Drehmoment'!F$1/($D$7/$C$7*$E$7*$F$7*60)))) -> 34 | G98: =IF('Leistung u. Drehmoment'!G1="",F98,IF(($F$7<=0),0,(3.6*$F$4*'Leistung u. Drehmoment'!G$1/($D$7/$C$7*$E$7*$F$7*60)))) -> 37 | H98: =IF('Leistung u. Drehmoment'!H1="",G98,IF(($F$7<=0),0,(3.6*$F$4*'Leistung u. Drehmoment'!H$1/($D$7/$C$7*$E$7*$F$7*60)))) -> 41 | I98: =IF('Leistung u. Drehmoment'!I1="",H98,IF(($F$7<=0),0,(3.6*$F$4*'Leistung u. Drehmoment'!I$1/($D$7/$C$7*$E$7*$F$7*60)))) -> 44 | J98: =IF('Leistung u. Drehmoment'!J1="",I98,IF(($F$7<=0),0,(3.6*$F$4*'Leistung u. Drehmoment'!J$1/($D$7/$C$7*$E$7*$F$7*60)))) -> 47 | K98: =IF('Leistung u. Drehmoment'!K1="",J98,IF(($F$7<=0),0,(3.6*$F$4*'Leistung u. Drehmoment'!K$1/($D$7/$C$7*$E$7*$F$7*60)))) -> 51 | L98: =IF('Leistung u. Drehmoment'!L1="",K98,IF(($F$7<=0),0,(3.6*$F$4*'Leistung u. Drehmoment'!L$1/($D$7/$C$7*$E$7*$F$7*60)))) -> 54 | M98: =IF('Leistung u. Drehmoment'!M1="",L98,IF(($F$7<=0),0,(3.6*$F$4*'Leistung u. Drehmoment'!M$1/($D$7/$C$7*$E$7*$F$7*60)))) -> 58
A99: F1 | C99: =IF('Leistung u. Drehmoment'!C1="",0,IF(($F$7=0),0,('Leistung u. Drehmoment'!C$4*$D$7/$C$7*$E$7*$F$7*$C$8*$E$8*$F$8/($F$4/2/PI())))) -> 1795 | D99: =IF('Leistung u. Drehmoment'!D1="",C99,IF(($F$7=0),0,('Leistung u. Drehmoment'!D$4*$D$7/$C$7*$E$7*$F$7*$C$8*$E$8*$F$8/($F$4/2/PI())))) -> 2448 | E99: =IF('Leistung u. Drehmoment'!E1="",D99,IF(($F$7=0),0,('Leistung u. Drehmoment'!E$4*$D$7/$C$7*$E$7*$F$7*$C$8*$E$8*$F$8/($F$4/2/PI())))) -> 2720 | F99: =IF('Leistung u. Drehmoment'!F1="",E99,IF(($F$7=0),0,('Leistung u. Drehmoment'!F$4*$D$7/$C$7*$E$7*$F$7*$C$8*$E$8*$F$8/($F$4/2/PI())))) -> 2938 | G99: =IF('Leistung u. Drehmoment'!G1="",F99,IF(($F$7=0),0,('Leistung u. Drehmoment'!G$4*$D$7/$C$7*$E$7*$F$7*$C$8*$E$8*$F$8/($F$4/2/PI())))) -> 3116 | H99: =IF('Leistung u. Drehmoment'!H1="",G99,IF(($F$7=0),0,('Leistung u. Drehmoment'!H$4*$D$7/$C$7*$E$7*$F$7*$C$8*$E$8*$F$8/($F$4/2/PI())))) -> 3183 | I99: =IF('Leistung u. Drehmoment'!I1="",H99,IF(($F$7=0),0,('Leistung u. Drehmoment'!I$4*$D$7/$C$7*$E$7*$F$7*$C$8*$E$8*$F$8/($F$4/2/PI())))) -> 3164 | J99: =IF('Leistung u. Drehmoment'!J1="",I99,IF(($F$7=0),0,('Leistung u. Drehmoment'!J$4*$D$7/$C$7*$E$7*$F$7*$C$8*$E$8*$F$8/($F$4/2/PI())))) -> 3043 | K99: =IF('Leistung u. Drehmoment'!K1="",J99,IF(($F$7=0),0,('Leistung u. Drehmoment'!K$4*$D$7/$C$7*$E$7*$F$7*$C$8*$E$8*$F$8/($F$4/2/PI())))) -> 2807 | L99: =IF('Leistung u. Drehmoment'!L1="",K99,IF(($F$7=0),0,('Leistung u. Drehmoment'!L$4*$D$7/$C$7*$E$7*$F$7*$C$8*$E$8*$F$8/($F$4/2/PI())))) -> 2448 | M99: =IF('Leistung u. Drehmoment'!M1="",L99,IF(($F$7=0),0,('Leistung u. Drehmoment'!M$4*$D$7/$C$7*$E$7*$F$7*$C$8*$E$8*$F$8/($F$4/2/PI())))) -> 1959
A100: V2 | C100: =IF('Leistung u. Drehmoment'!C1="",0,IF(($G$7<=0),0,(3.6*$F$4*'Leistung u. Drehmoment'!C$1/($D$7/$C$7*$E$7*$G$7*60)))) -> 32 | D100: =IF('Leistung u. Drehmoment'!D1="",C100,IF(($G$7<=0),0,(3.6*$F$4*'Leistung u. Drehmoment'!D$1/($D$7/$C$7*$E$7*$G$7*60)))) -> 42 | E100: =IF('Leistung u. Drehmoment'!E1="",D100,IF(($G$7<=0),0,(3.6*$F$4*'Leistung u. Drehmoment'!E$1/($D$7/$C$7*$E$7*$G$7*60)))) -> 48 | F100: =IF('Leistung u. Drehmoment'!F1="",E100,IF(($G$7<=0),0,(3.6*$F$4*'Leistung u. Drehmoment'!F$1/($D$7/$C$7*$E$7*$G$7*60)))) -> 53 | G100: =IF('Leistung u. Drehmoment'!G1="",F100,IF(($G$7<=0),0,(3.6*$F$4*'Leistung u. Drehmoment'!G$1/($D$7/$C$7*$E$7*$G$7*60)))) -> 58 | H100: =IF('Leistung u. Drehmoment'!H1="",G100,IF(($G$7<=0),0,(3.6*$F$4*'Leistung u. Drehmoment'!H$1/($D$7/$C$7*$E$7*$G$7*60)))) -> 64 | I100: =IF('Leistung u. Drehmoment'!I1="",H100,IF(($G$7<=0),0,(3.6*$F$4*'Leistung u. Drehmoment'!I$1/($D$7/$C$7*$E$7*$G$7*60)))) -> 69 | J100: =IF('Leistung u. Drehmoment'!J1="",I100,IF(($G$7<=0),0,(3.6*$F$4*'Leistung u. Drehmoment'!J$1/($D$7/$C$7*$E$7*$G$7*60)))) -> 74 | K100: =IF('Leistung u. Drehmoment'!K1="",J100,IF(($G$7<=0),0,(3.6*$F$4*'Leistung u. Drehmoment'!K$1/($D$7/$C$7*$E$7*$G$7*60)))) -> 79 | L100: =IF('Leistung u. Drehmoment'!L1="",K100,IF(($G$7<=0),0,(3.6*$F$4*'Leistung u. Drehmoment'!L$1/($D$7/$C$7*$E$7*$G$7*60)))) -> 85 | M100: =IF('Leistung u. Drehmoment'!M1="",L100,IF(($G$7<=0),0,(3.6*$F$4*'Leistung u. Drehmoment'!M$1/($D$7/$C$7*$E$7*$G$7*60)))) -> 90
A101: F2 | C101: =IF('Leistung u. Drehmoment'!C1="",0,IF(($G$7=0),0,('Leistung u. Drehmoment'!C$4*$D$7/$C$7*$E$7*$G$7*$C$8*$E$8*$G$8/($F$4/2/PI())))) -> 1149 | D101: =IF('Leistung u. Drehmoment'!D1="",C101,IF(($G$7=0),0,('Leistung u. Drehmoment'!D$4*$D$7/$C$7*$E$7*$G$7*$C$8*$E$8*$G$8/($F$4/2/PI())))) -> 1567 | E101: =IF('Leistung u. Drehmoment'!E1="",D101,IF(($G$7=0),0,('Leistung u. Drehmoment'!E$4*$D$7/$C$7*$E$7*$G$7*$C$8*$E$8*$G$8/($F$4/2/PI())))) -> 1741 | F101: =IF('Leistung u. Drehmoment'!F1="",E101,IF(($G$7=0),0,('Leistung u. Drehmoment'!F$4*$D$7/$C$7*$E$7*$G$7*$C$8*$E$8*$G$8/($F$4/2/PI())))) -> 1880 | G101: =IF('Leistung u. Drehmoment'!G1="",F101,IF(($G$7=0),0,('Leistung u. Drehmoment'!G$4*$D$7/$C$7*$E$7*$G$7*$C$8*$E$8*$G$8/($F$4/2/PI())))) -> 1994 | H101: =IF('Leistung u. Drehmoment'!H1="",G101,IF(($G$7=0),0,('Leistung u. Drehmoment'!H$4*$D$7/$C$7*$E$7*$G$7*$C$8*$E$8*$G$8/($F$4/2/PI())))) -> 2037 | I101: =IF('Leistung u. Drehmoment'!I1="",H101,IF(($G$7=0),0,('Leistung u. Drehmoment'!I$4*$D$7/$C$7*$E$7*$G$7*$C$8*$E$8*$G$8/($F$4/2/PI())))) -> 2025 | J101: =IF('Leistung u. Drehmoment'!J1="",I101,IF(($G$7=0),0,('Leistung u. Drehmoment'!J$4*$D$7/$C$7*$E$7*$G$7*$C$8*$E$8*$G$8/($F$4/2/PI())))) -> 1947 | K101: =IF('Leistung u. Drehmoment'!K1="",J101,IF(($G$7=0),0,('Leistung u. Drehmoment'!K$4*$D$7/$C$7*$E$7*$G$7*$C$8*$E$8*$G$8/($F$4/2/PI())))) -> 1797 | L101: =IF('Leistung u. Drehmoment'!L1="",K101,IF(($G$7=0),0,('Leistung u. Drehmoment'!L$4*$D$7/$C$7*$E$7*$G$7*$C$8*$E$8*$G$8/($F$4/2/PI())))) -> 1567 | M101: =IF('Leistung u. Drehmoment'!M1="",L101,IF(($G$7=0),0,('Leistung u. Drehmoment'!M$4*$D$7/$C$7*$E$7*$G$7*$C$8*$E$8*$G$8/($F$4/2/PI())))) -> 1253
A102: V3 | C102: =IF('Leistung u. Drehmoment'!C1="",0,IF(($H$7<=0),0,(3.6*$F$4*'Leistung u. Drehmoment'!C$1/($D$7/$C$7*$E$7*$H$7*60)))) -> 44 | D102: =IF('Leistung u. Drehmoment'!D1="",C102,IF(($H$7<=0),0,(3.6*$F$4*'Leistung u. Drehmoment'!D$1/($D$7/$C$7*$E$7*$H$7*60)))) -> 58 | E102: =IF('Leistung u. Drehmoment'!E1="",D102,IF(($H$7<=0),0,(3.6*$F$4*'Leistung u. Drehmoment'!E$1/($D$7/$C$7*$E$7*$H$7*60)))) -> 65 | F102: =IF('Leistung u. Drehmoment'!F1="",E102,IF(($H$7<=0),0,(3.6*$F$4*'Leistung u. Drehmoment'!F$1/($D$7/$C$7*$E$7*$H$7*60)))) -> 73 | G102: =IF('Leistung u. Drehmoment'!G1="",F102,IF(($H$7<=0),0,(3.6*$F$4*'Leistung u. Drehmoment'!G$1/($D$7/$C$7*$E$7*$H$7*60)))) -> 80 | H102: =IF('Leistung u. Drehmoment'!H1="",G102,IF(($H$7<=0),0,(3.6*$F$4*'Leistung u. Drehmoment'!H$1/($D$7/$C$7*$E$7*$H$7*60)))) -> 87 | I102: =IF('Leistung u. Drehmoment'!I1="",H102,IF(($H$7<=0),0,(3.6*$F$4*'Leistung u. Drehmoment'!I$1/($D$7/$C$7*$E$7*$H$7*60)))) -> 94 | J102: =IF('Leistung u. Drehmoment'!J1="",I102,IF(($H$7<=0),0,(3.6*$F$4*'Leistung u. Drehmoment'!J$1/($D$7/$C$7*$E$7*$H$7*60)))) -> 102 | K102: =IF('Leistung u. Drehmoment'!K1="",J102,IF(($H$7<=0),0,(3.6*$F$4*'Leistung u. Drehmoment'!K$1/($D$7/$C$7*$E$7*$H$7*60)))) -> 109 | L102: =IF('Leistung u. Drehmoment'!L1="",K102,IF(($H$7<=0),0,(3.6*$F$4*'Leistung u. Drehmoment'!L$1/($D$7/$C$7*$E$7*$H$7*60)))) -> 116 | M102: =IF('Leistung u. Drehmoment'!M1="",L102,IF(($H$7<=0),0,(3.6*$F$4*'Leistung u. Drehmoment'!M$1/($D$7/$C$7*$E$7*$H$7*60)))) -> 123
A103: F3 | C103: =IF('Leistung u. Drehmoment'!C1="",0,IF(($H$7=0),0,('Leistung u. Drehmoment'!C$4*$D$7/$C$7*$E$7*$H$7*$C$8*$E$8*$H$8/($F$4/2/PI())))) -> 838 | D103: =IF('Leistung u. Drehmoment'!D1="",C103,IF(($H$7=0),0,('Leistung u. Drehmoment'!D$4*$D$7/$C$7*$E$7*$H$7*$C$8*$E$8*$H$8/($F$4/2/PI())))) -> 1142 | E103: =IF('Leistung u. Drehmoment'!E1="",D103,IF(($H$7=0),0,('Leistung u. Drehmoment'!E$4*$D$7/$C$7*$E$7*$H$7*$C$8*$E$8*$H$8/($F$4/2/PI())))) -> 1269 | F103: =IF('Leistung u. Drehmoment'!F1="",E103,IF(($H$7=0),0,('Leistung u. Drehmoment'!F$4*$D$7/$C$7*$E$7*$H$7*$C$8*$E$8*$H$8/($F$4/2/PI())))) -> 1371 | G103: =IF('Leistung u. Drehmoment'!G1="",F103,IF(($H$7=0),0,('Leistung u. Drehmoment'!G$4*$D$7/$C$7*$E$7*$H$7*$C$8*$E$8*$H$8/($F$4/2/PI())))) -> 1454 | H103: =IF('Leistung u. Drehmoment'!H1="",G103,IF(($H$7=0),0,('Leistung u. Drehmoment'!H$4*$D$7/$C$7*$E$7*$H$7*$C$8*$E$8*$H$8/($F$4/2/PI())))) -> 1485 | I103: =IF('Leistung u. Drehmoment'!I1="",H103,IF(($H$7=0),0,('Leistung u. Drehmoment'!I$4*$D$7/$C$7*$E$7*$H$7*$C$8*$E$8*$H$8/($F$4/2/PI())))) -> 1476 | J103: =IF('Leistung u. Drehmoment'!J1="",I103,IF(($H$7=0),0,('Leistung u. Drehmoment'!J$4*$D$7/$C$7*$E$7*$H$7*$C$8*$E$8*$H$8/($F$4/2/PI())))) -> 1420 | K103: =IF('Leistung u. Drehmoment'!K1="",J103,IF(($H$7=0),0,('Leistung u. Drehmoment'!K$4*$D$7/$C$7*$E$7*$H$7*$C$8*$E$8*$H$8/($F$4/2/PI())))) -> 1310 | L103: =IF('Leistung u. Drehmoment'!L1="",K103,IF(($H$7=0),0,('Leistung u. Drehmoment'!L$4*$D$7/$C$7*$E$7*$H$7*$C$8*$E$8*$H$8/($F$4/2/PI())))) -> 1142 | M103: =IF('Leistung u. Drehmoment'!M1="",L103,IF(($H$7=0),0,('Leistung u. Drehmoment'!M$4*$D$7/$C$7*$E$7*$H$7*$C$8*$E$8*$H$8/($F$4/2/PI())))) -> 914
A104: V4 | C104: =IF('Leistung u. Drehmoment'!C1="",0,IF(($I$7<=0),0,(3.6*$F$4*'Leistung u. Drehmoment'!C$1/($D$7/$C$7*$E$7*$I$7*60)))) -> 53 | D104: =IF('Leistung u. Drehmoment'!D1="",C104,IF(($I$7<=0),0,(3.6*$F$4*'Leistung u. Drehmoment'!D$1/($D$7/$C$7*$E$7*$I$7*60)))) -> 71 | E104: =IF('Leistung u. Drehmoment'!E1="",D104,IF(($I$7<=0),0,(3.6*$F$4*'Leistung u. Drehmoment'!E$1/($D$7/$C$7*$E$7*$I$7*60)))) -> 80 | F104: =IF('Leistung u. Drehmoment'!F1="",E104,IF(($I$7<=0),0,(3.6*$F$4*'Leistung u. Drehmoment'!F$1/($D$7/$C$7*$E$7*$I$7*60)))) -> 89 | G104: =IF('Leistung u. Drehmoment'!G1="",F104,IF(($I$7<=0),0,(3.6*$F$4*'Leistung u. Drehmoment'!G$1/($D$7/$C$7*$E$7*$I$7*60)))) -> 98 | H104: =IF('Leistung u. Drehmoment'!H1="",G104,IF(($I$7<=0),0,(3.6*$F$4*'Leistung u. Drehmoment'!H$1/($D$7/$C$7*$E$7*$I$7*60)))) -> 107 | I104: =IF('Leistung u. Drehmoment'!I1="",H104,IF(($I$7<=0),0,(3.6*$F$4*'Leistung u. Drehmoment'!I$1/($D$7/$C$7*$E$7*$I$7*60)))) -> 116 | J104: =IF('Leistung u. Drehmoment'!J1="",I104,IF(($I$7<=0),0,(3.6*$F$4*'Leistung u. Drehmoment'!J$1/($D$7/$C$7*$E$7*$I$7*60)))) -> 125 | K104: =IF('Leistung u. Drehmoment'!K1="",J104,IF(($I$7<=0),0,(3.6*$F$4*'Leistung u. Drehmoment'!K$1/($D$7/$C$7*$E$7*$I$7*60)))) -> 134 | L104: =IF('Leistung u. Drehmoment'!L1="",K104,IF(($I$7<=0),0,(3.6*$F$4*'Leistung u. Drehmoment'!L$1/($D$7/$C$7*$E$7*$I$7*60)))) -> 143 | M104: =IF('Leistung u. Drehmoment'!M1="",L104,IF(($I$7<=0),0,(3.6*$F$4*'Leistung u. Drehmoment'!M$1/($D$7/$C$7*$E$7*$I$7*60)))) -> 152
A105: F4 | C105: =IF('Leistung u. Drehmoment'!C1="",0,IF(($I$7=0),0,('Leistung u. Drehmoment'!C$4*$D$7/$C$7*$E$7*$C$8*$E$8*$I$7*$I$8/($F$4/2/PI())))) -> 682 | D105: =IF('Leistung u. Drehmoment'!D1="",C105,IF(($I$7=0),0,('Leistung u. Drehmoment'!D$4*$D$7/$C$7*$E$7*$C$8*$E$8*$I$7*$I$8/($F$4/2/PI())))) -> 930 | E105: =IF('Leistung u. Drehmoment'!E1="",D105,IF(($I$7=0),0,('Leistung u. Drehmoment'!E$4*$D$7/$C$7*$E$7*$C$8*$E$8*$I$7*$I$8/($F$4/2/PI())))) -> 1034 | F105: =IF('Leistung u. Drehmoment'!F1="",E105,IF(($I$7=0),0,('Leistung u. Drehmoment'!F$4*$D$7/$C$7*$E$7*$C$8*$E$8*$I$7*$I$8/($F$4/2/PI())))) -> 1116 | G105: =IF('Leistung u. Drehmoment'!G1="",F105,IF(($I$7=0),0,('Leistung u. Drehmoment'!G$4*$D$7/$C$7*$E$7*$C$8*$E$8*$I$7*$I$8/($F$4/2/PI())))) -> 1184 | H105: =IF('Leistung u. Drehmoment'!H1="",G105,IF(($I$7=0),0,('Leistung u. Drehmoment'!H$4*$D$7/$C$7*$E$7*$C$8*$E$8*$I$7*$I$8/($F$4/2/PI())))) -> 1209 | I105: =IF('Leistung u. Drehmoment'!I1="",H105,IF(($I$7=0),0,('Leistung u. Drehmoment'!I$4*$D$7/$C$7*$E$7*$C$8*$E$8*$I$7*$I$8/($F$4/2/PI())))) -> 1202 | J105: =IF('Leistung u. Drehmoment'!J1="",I105,IF(($I$7=0),0,('Leistung u. Drehmoment'!J$4*$D$7/$C$7*$E$7*$C$8*$E$8*$I$7*$I$8/($F$4/2/PI())))) -> 1156 | K105: =IF('Leistung u. Drehmoment'!K1="",J105,IF(($I$7=0),0,('Leistung u. Drehmoment'!K$4*$D$7/$C$7*$E$7*$C$8*$E$8*$I$7*$I$8/($F$4/2/PI())))) -> 1067 | L105: =IF('Leistung u. Drehmoment'!L1="",K105,IF(($I$7=0),0,('Leistung u. Drehmoment'!L$4*$D$7/$C$7*$E$7*$C$8*$E$8*$I$7*$I$8/($F$4/2/PI())))) -> 930 | M105: =IF('Leistung u. Drehmoment'!M1="",L105,IF(($I$7=0),0,('Leistung u. Drehmoment'!M$4*$D$7/$C$7*$E$7*$C$8*$E$8*$I$7*$I$8/($F$4/2/PI())))) -> 744
A106: V5 | C106: =IF('Leistung u. Drehmoment'!C1="",0,IF(($J$7<=0),0,(3.6*$F$4*'Leistung u. Drehmoment'!C$1/($D$7/$C$7*$E$7*$J$7*60)))) -> 62 | D106: =IF('Leistung u. Drehmoment'!D1="",C106,IF(($J$7<=0),0,(3.6*$F$4*'Leistung u. Drehmoment'!D$1/($D$7/$C$7*$E$7*$J$7*60)))) -> 83 | E106: =IF('Leistung u. Drehmoment'!E1="",D106,IF(($J$7<=0),0,(3.6*$F$4*'Leistung u. Drehmoment'!E$1/($D$7/$C$7*$E$7*$J$7*60)))) -> 93 | F106: =IF('Leistung u. Drehmoment'!F1="",E106,IF(($J$7<=0),0,(3.6*$F$4*'Leistung u. Drehmoment'!F$1/($D$7/$C$7*$E$7*$J$7*60)))) -> 104 | G106: =IF('Leistung u. Drehmoment'!G1="",F106,IF(($J$7<=0),0,(3.6*$F$4*'Leistung u. Drehmoment'!G$1/($D$7/$C$7*$E$7*$J$7*60)))) -> 114 | H106: =IF('Leistung u. Drehmoment'!H1="",G106,IF(($J$7<=0),0,(3.6*$F$4*'Leistung u. Drehmoment'!H$1/($D$7/$C$7*$E$7*$J$7*60)))) -> 124 | I106: =IF('Leistung u. Drehmoment'!I1="",H106,IF(($J$7<=0),0,(3.6*$F$4*'Leistung u. Drehmoment'!I$1/($D$7/$C$7*$E$7*$J$7*60)))) -> 135 | J106: =IF('Leistung u. Drehmoment'!J1="",I106,IF(($J$7<=0),0,(3.6*$F$4*'Leistung u. Drehmoment'!J$1/($D$7/$C$7*$E$7*$J$7*60)))) -> 145 | K106: =IF('Leistung u. Drehmoment'!K1="",J106,IF(($J$7<=0),0,(3.6*$F$4*'Leistung u. Drehmoment'!K$1/($D$7/$C$7*$E$7*$J$7*60)))) -> 155 | L106: =IF('Leistung u. Drehmoment'!L1="",K106,IF(($J$7<=0),0,(3.6*$F$4*'Leistung u. Drehmoment'!L$1/($D$7/$C$7*$E$7*$J$7*60)))) -> 166 | M106: =IF('Leistung u. Drehmoment'!M1="",L106,IF(($J$7<=0),0,(3.6*$F$4*'Leistung u. Drehmoment'!M$1/($D$7/$C$7*$E$7*$J$7*60)))) -> 176
A107: F5 | C107: =IF('Leistung u. Drehmoment'!C1="",0,IF(($J$7=0),0,('Leistung u. Drehmoment'!C$4*$D$7/$C$7*$E$7*$C$8*$E$8*$J$7*$J$8/($F$4/2/PI())))) -> 588 | D107: =IF('Leistung u. Drehmoment'!D1="",C107,IF(($J$7=0),0,('Leistung u. Drehmoment'!D$4*$D$7/$C$7*$E$7*$C$8*$E$8*$J$7*$J$8/($F$4/2/PI())))) -> 801 | E107: =IF('Leistung u. Drehmoment'!E1="",D107,IF(($J$7=0),0,('Leistung u. Drehmoment'!E$4*$D$7/$C$7*$E$7*$C$8*$E$8*$J$7*$J$8/($F$4/2/PI())))) -> 890 | F107: =IF('Leistung u. Drehmoment'!F1="",E107,IF(($J$7=0),0,('Leistung u. Drehmoment'!F$4*$D$7/$C$7*$E$7*$C$8*$E$8*$J$7*$J$8/($F$4/2/PI())))) -> 961 | G107: =IF('Leistung u. Drehmoment'!G1="",F107,IF(($J$7=0),0,('Leistung u. Drehmoment'!G$4*$D$7/$C$7*$E$7*$C$8*$E$8*$J$7*$J$8/($F$4/2/PI())))) -> 1020 | H107: =IF('Leistung u. Drehmoment'!H1="",G107,IF(($J$7=0),0,('Leistung u. Drehmoment'!H$4*$D$7/$C$7*$E$7*$C$8*$E$8*$J$7*$J$8/($F$4/2/PI())))) -> 1042 | I107: =IF('Leistung u. Drehmoment'!I1="",H107,IF(($J$7=0),0,('Leistung u. Drehmoment'!I$4*$D$7/$C$7*$E$7*$C$8*$E$8*$J$7*$J$8/($F$4/2/PI())))) -> 1035 | J107: =IF('Leistung u. Drehmoment'!J1="",I107,IF(($J$7=0),0,('Leistung u. Drehmoment'!J$4*$D$7/$C$7*$E$7*$C$8*$E$8*$J$7*$J$8/($F$4/2/PI())))) -> 996 | K107: =IF('Leistung u. Drehmoment'!K1="",J107,IF(($J$7=0),0,('Leistung u. Drehmoment'!K$4*$D$7/$C$7*$E$7*$C$8*$E$8*$J$7*$J$8/($F$4/2/PI())))) -> 919 | L107: =IF('Leistung u. Drehmoment'!L1="",K107,IF(($J$7=0),0,('Leistung u. Drehmoment'!L$4*$D$7/$C$7*$E$7*$C$8*$E$8*$J$7*$J$8/($F$4/2/PI())))) -> 801 | M107: =IF('Leistung u. Drehmoment'!M1="",L107,IF(($J$7=0),0,('Leistung u. Drehmoment'!M$4*$D$7/$C$7*$E$7*$C$8*$E$8*$J$7*$J$8/($F$4/2/PI())))) -> 641
A108: V6 | C108: =IF('Leistung u. Drehmoment'!C1="",0,IF(($K$7<=0),0,(3.6*$F$4*'Leistung u. Drehmoment'!C$1/($D$7/$C$7*$E$7*$K$7*60)))) -> 0 | D108: =IF('Leistung u. Drehmoment'!D1="",C108,IF(($K$7<=0),0,(3.6*$F$4*'Leistung u. Drehmoment'!D$1/($D$7/$C$7*$E$7*$K$7*60)))) -> 0 | E108: =IF('Leistung u. Drehmoment'!E1="",D108,IF(($K$7<=0),0,(3.6*$F$4*'Leistung u. Drehmoment'!E$1/($D$7/$C$7*$E$7*$K$7*60)))) -> 0 | F108: =IF('Leistung u. Drehmoment'!F1="",E108,IF(($K$7<=0),0,(3.6*$F$4*'Leistung u. Drehmoment'!F$1/($D$7/$C$7*$E$7*$K$7*60)))) -> 0 | G108: =IF('Leistung u. Drehmoment'!G1="",F108,IF(($K$7<=0),0,(3.6*$F$4*'Leistung u. Drehmoment'!G$1/($D$7/$C$7*$E$7*$K$7*60)))) -> 0 | H108: =IF('Leistung u. Drehmoment'!H1="",G108,IF(($K$7<=0),0,(3.6*$F$4*'Leistung u. Drehmoment'!H$1/($D$7/$C$7*$E$7*$K$7*60)))) -> 0 | I108: =IF('Leistung u. Drehmoment'!I1="",H108,IF(($K$7<=0),0,(3.6*$F$4*'Leistung u. Drehmoment'!I$1/($D$7/$C$7*$E$7*$K$7*60)))) -> 0 | J108: =IF('Leistung u. Drehmoment'!J1="",I108,IF(($K$7<=0),0,(3.6*$F$4*'Leistung u. Drehmoment'!J$1/($D$7/$C$7*$E$7*$K$7*60)))) -> 0 | K108: =IF('Leistung u. Drehmoment'!K1="",J108,IF(($K$7<=0),0,(3.6*$F$4*'Leistung u. Drehmoment'!K$1/($D$7/$C$7*$E$7*$K$7*60)))) -> 0 | L108: =IF('Leistung u. Drehmoment'!L1="",K108,IF(($K$7<=0),0,(3.6*$F$4*'Leistung u. Drehmoment'!L$1/($D$7/$C$7*$E$7*$K$7*60)))) -> 0 | M108: =IF('Leistung u. Drehmoment'!M1="",L108,IF(($K$7<=0),0,(3.6*$F$4*'Leistung u. Drehmoment'!M$1/($D$7/$C$7*$E$7*$K$7*60)))) -> 0
A109: F6 | C109: =IF('Leistung u. Drehmoment'!C1="",0,IF(($K$7=0),0,('Leistung u. Drehmoment'!C$4*$D$7/$C$7*$E$7*$K$7*$C$8*$E$8*$K$8/($F$4/2/PI())))) -> 0 | D109: =IF('Leistung u. Drehmoment'!D1="",C109,IF(($K$7=0),0,('Leistung u. Drehmoment'!D$4*$D$7/$C$7*$E$7*$K$7*$C$8*$E$8*$K$8/($F$4/2/PI())))) -> 0 | E109: =IF('Leistung u. Drehmoment'!E1="",D109,IF(($K$7=0),0,('Leistung u. Drehmoment'!E$4*$D$7/$C$7*$E$7*$K$7*$C$8*$E$8*$K$8/($F$4/2/PI())))) -> 0 | F109: =IF('Leistung u. Drehmoment'!F1="",E109,IF(($K$7=0),0,('Leistung u. Drehmoment'!F$4*$D$7/$C$7*$E$7*$K$7*$C$8*$E$8*$K$8/($F$4/2/PI())))) -> 0 | G109: =IF('Leistung u. Drehmoment'!G1="",F109,IF(($K$7=0),0,('Leistung u. Drehmoment'!G$4*$D$7/$C$7*$E$7*$K$7*$C$8*$E$8*$K$8/($F$4/2/PI())))) -> 0 | H109: =IF('Leistung u. Drehmoment'!H1="",G109,IF(($K$7=0),0,('Leistung u. Drehmoment'!H$4*$D$7/$C$7*$E$7*$K$7*$C$8*$E$8*$K$8/($F$4/2/PI())))) -> 0 | I109: =IF('Leistung u. Drehmoment'!I1="",H109,IF(($K$7=0),0,('Leistung u. Drehmoment'!I$4*$D$7/$C$7*$E$7*$K$7*$C$8*$E$8*$K$8/($F$4/2/PI())))) -> 0 | J109: =IF('Leistung u. Drehmoment'!J1="",I109,IF(($K$7=0),0,('Leistung u. Drehmoment'!J$4*$D$7/$C$7*$E$7*$K$7*$C$8*$E$8*$K$8/($F$4/2/PI())))) -> 0 | K109: =IF('Leistung u. Drehmoment'!K1="",J109,IF(($K$7=0),0,('Leistung u. Drehmoment'!K$4*$D$7/$C$7*$E$7*$K$7*$C$8*$E$8*$K$8/($F$4/2/PI())))) -> 0 | L109: =IF('Leistung u. Drehmoment'!L1="",K109,IF(($K$7=0),0,('Leistung u. Drehmoment'!L$4*$D$7/$C$7*$E$7*$K$7*$C$8*$E$8*$K$8/($F$4/2/PI())))) -> 0 | M109: =IF('Leistung u. Drehmoment'!M1="",L109,IF(($K$7=0),0,('Leistung u. Drehmoment'!M$4*$D$7/$C$7*$E$7*$K$7*$C$8*$E$8*$K$8/($F$4/2/PI())))) -> 0
A110: V7 | C110: =IF('Leistung u. Drehmoment'!C1="",0,IF(($L$7<=0),0,(3.6*$F$4*'Leistung u. Drehmoment'!C$1/($D$7/$C$7*$E$7*$L$7*60)))) -> 0 | D110: =IF('Leistung u. Drehmoment'!D1="",C110,IF(($L$7<=0),0,(3.6*$F$4*'Leistung u. Drehmoment'!D$1/($D$7/$C$7*$E$7*$L$7*60)))) -> 0 | E110: =IF('Leistung u. Drehmoment'!E1="",D110,IF(($L$7<=0),0,(3.6*$F$4*'Leistung u. Drehmoment'!E$1/($D$7/$C$7*$E$7*$L$7*60)))) -> 0 | F110: =IF('Leistung u. Drehmoment'!F1="",E110,IF(($L$7<=0),0,(3.6*$F$4*'Leistung u. Drehmoment'!F$1/($D$7/$C$7*$E$7*$L$7*60)))) -> 0 | G110: =IF('Leistung u. Drehmoment'!G1="",F110,IF(($L$7<=0),0,(3.6*$F$4*'Leistung u. Drehmoment'!G$1/($D$7/$C$7*$E$7*$L$7*60)))) -> 0 | H110: =IF('Leistung u. Drehmoment'!H1="",G110,IF(($L$7<=0),0,(3.6*$F$4*'Leistung u. Drehmoment'!H$1/($D$7/$C$7*$E$7*$L$7*60)))) -> 0 | I110: =IF('Leistung u. Drehmoment'!I1="",H110,IF(($L$7<=0),0,(3.6*$F$4*'Leistung u. Drehmoment'!I$1/($D$7/$C$7*$E$7*$L$7*60)))) -> 0 | J110: =IF('Leistung u. Drehmoment'!J1="",I110,IF(($L$7<=0),0,(3.6*$F$4*'Leistung u. Drehmoment'!J$1/($D$7/$C$7*$E$7*$L$7*60)))) -> 0 | K110: =IF('Leistung u. Drehmoment'!K1="",J110,IF(($L$7<=0),0,(3.6*$F$4*'Leistung u. Drehmoment'!K$1/($D$7/$C$7*$E$7*$L$7*60)))) -> 0 | L110: =IF('Leistung u. Drehmoment'!L1="",K110,IF(($L$7<=0),0,(3.6*$F$4*'Leistung u. Drehmoment'!L$1/($D$7/$C$7*$E$7*$L$7*60)))) -> 0 | M110: =IF('Leistung u. Drehmoment'!M1="",L110,IF(($L$7<=0),0,(3.6*$F$4*'Leistung u. Drehmoment'!M$1/($D$7/$C$7*$E$7*$L$7*60)))) -> 0
A111: F7 | C111: =IF('Leistung u. Drehmoment'!C1="",0,IF(($L$7=0),0,('Leistung u. Drehmoment'!C$4*$D$7/$C$7*$E$7*$C$8*$E$8*$L$7*$L$8/($F$4/2/PI())))) -> 0 | D111: =IF('Leistung u. Drehmoment'!D1="",C111,IF(($L$7=0),0,('Leistung u. Drehmoment'!D$4*$D$7/$C$7*$E$7*$C$8*$E$8*$L$7*$L$8/($F$4/2/PI())))) -> 0 | E111: =IF('Leistung u. Drehmoment'!E1="",D111,IF(($L$7=0),0,('Leistung u. Drehmoment'!E$4*$D$7/$C$7*$E$7*$C$8*$E$8*$L$7*$L$8/($F$4/2/PI())))) -> 0 | F111: =IF('Leistung u. Drehmoment'!F1="",E111,IF(($L$7=0),0,('Leistung u. Drehmoment'!F$4*$D$7/$C$7*$E$7*$C$8*$E$8*$L$7*$L$8/($F$4/2/PI())))) -> 0 | G111: =IF('Leistung u. Drehmoment'!G1="",F111,IF(($L$7=0),0,('Leistung u. Drehmoment'!G$4*$D$7/$C$7*$E$7*$C$8*$E$8*$L$7*$L$8/($F$4/2/PI())))) -> 0 | H111: =IF('Leistung u. Drehmoment'!H1="",G111,IF(($L$7=0),0,('Leistung u. Drehmoment'!H$4*$D$7/$C$7*$E$7*$C$8*$E$8*$L$7*$L$8/($F$4/2/PI())))) -> 0 | I111: =IF('Leistung u. Drehmoment'!I1="",H111,IF(($L$7=0),0,('Leistung u. Drehmoment'!I$4*$D$7/$C$7*$E$7*$C$8*$E$8*$L$7*$L$8/($F$4/2/PI())))) -> 0 | J111: =IF('Leistung u. Drehmoment'!J1="",I111,IF(($L$7=0),0,('Leistung u. Drehmoment'!J$4*$D$7/$C$7*$E$7*$C$8*$E$8*$L$7*$L$8/($F$4/2/PI())))) -> 0 | K111: =IF('Leistung u. Drehmoment'!K1="",J111,IF(($L$7=0),0,('Leistung u. Drehmoment'!K$4*$D$7/$C$7*$E$7*$C$8*$E$8*$L$7*$L$8/($F$4/2/PI())))) -> 0 | L111: =IF('Leistung u. Drehmoment'!L1="",K111,IF(($L$7=0),0,('Leistung u. Drehmoment'!L$4*$D$7/$C$7*$E$7*$C$8*$E$8*$L$7*$L$8/($F$4/2/PI())))) -> 0 | M111: =IF('Leistung u. Drehmoment'!M1="",L111,IF(($L$7=0),0,('Leistung u. Drehmoment'!M$4*$D$7/$C$7*$E$7*$C$8*$E$8*$L$7*$L$8/($F$4/2/PI())))) -> 0
B113: nmin | C113: nmax | D113: vschalt | F113: nSchalt opti | H113: VSchalt opti | J113: nmin | K113: nmax | L113: vmin | M113: vmax
A114: 1. | B114: 0 | C114: =M8 -> 8500 | D114: 0 | E114: =IF((F$7<=0),"",(3.6*$F$4*$C$114/($D$7/$C$7*$E$7*F$7*60))) -> 58 | F114: 0 | G114: =F68 -> 8500 | H114: 0 | I114: =F69 -> 58 | J114: 1000 | K114: =MAX('Leistung u. Drehmoment'!C1:M1) -> 8500 | L114: =IF((F$7<=0),"",(3.6*$F$4*J114/($D$7/$C$7*$E$7*F$7*60))) -> 6.775880518 | M114: =IF((F$7<=0),"",(3.6*$F$4*K114/($D$7/$C$7*$E$7*F$7*60))) -> 57.59498441
A115: 2. | B115: =IF(($G$7<=0),"",E114*($D$7/$C$7*$E$7*$G$7*60)/(3.6*$F$4)) -> 5440 | C115: =IF((G$7<=0),"",$C$114) -> 8500 | D115: =$E114 -> 58 | E115: =IF(($G$7<=0),"",(3.6*$F$4*$C$114/($D$7/$C$7*$E$7*$G$7*60))) -> 90 | F115: =IF(($G$7<=0),"",I114*($D$7/$C$7*$E$7*$G$7*60)/(3.6*$F$4)) -> 5440 | G115: =G68 -> 8123 | H115: =F69 -> 58 | I115: =G69 -> 86 | J115: =IF((G$7<=0),"",1000) -> 1000 | K115: =IF((G$7<=0),"",MAX('Leistung u. Drehmoment'!C1:M1)) -> 8500 | L115: =IF((G$7<=0),"",(3.6*$F$4*J115/($D$7/$C$7*$E$7*G$7*60))) -> 10.58731331 | M115: =IF((G$7<=0),"",(3.6*$F$4*K115/($D$7/$C$7*$E$7*G$7*60))) -> 89.99216314
A116: 3. | B116: =IF(($H$7<=0),"",E115*($D$7/$C$7*$E$7*$H$7*60)/(3.6*F$4)) -> 6198 | C116: =IF((H$7<=0),"",$C$114) -> 8500 | D116: =$E115 -> 90 | E116: =IF(($H$7<=0),"",(3.6*$F$4*$C$114/($D$7/$C$7*$E$7*$H$7*60))) -> 123 | F116: =IF(($H$7<=0),"",I115*($D$7/$C$7*$E$7*$H$7*60)/(3.6*F$4)) -> 5923 | G116: =H68 -> 7783 | H116: =G69 -> 86 | I116: =H69 -> 113 | J116: =IF((H$7<=0),"",1000) -> 1000 | K116: =IF((H$7<=0),"",MAX('Leistung u. Drehmoment'!C1:M1)) -> 8500 | L116: =IF((H$7<=0),"",(3.6*$F$4*J116/($D$7/$C$7*$E$7*H$7*60))) -> 14.51974397 | M116: =IF((H$7<=0),"",(3.6*$F$4*K116/($D$7/$C$7*$E$7*H$7*60))) -> 123.4178237
A117: 4. | B117: =IF(($I$7<=0),"",E116*($D$7/$C$7*$E$7*$I$7*60)/(3.6*F$4)) -> 6921 | C117: =IF((I$7<=0),"",$C$114) -> 8500 | D117: =$E116 -> 123 | E117: =IF(($I$7<=0),"",(3.6*$F$4*$C$114/($D$7/$C$7*$E$7*$I$7*60))) -> 152 | F117: =IF(($I$7<=0),"",I116*($D$7/$C$7*$E$7*$I$7*60)/(3.6*F$4)) -> 6337 | G117: =I68 -> 7627 | H117: =H69 -> 113 | I117: =I69 -> 136 | J117: =IF((I$7<=0),"",1000) -> 1000 | K117: =IF((I$7<=0),"",MAX('Leistung u. Drehmoment'!C1:M1)) -> 8500 | L117: =IF((I$7<=0),"",(3.6*$F$4*J117/($D$7/$C$7*$E$7*I$7*60))) -> 17.83126452 | M117: =IF((I$7<=0),"",(3.6*$F$4*K117/($D$7/$C$7*$E$7*I$7*60))) -> 151.5657484
A118: 5. | B118: =IF(($J$7<=0),"",E117*($D$7/$C$7*$E$7*$J$7*60)/(3.6*F$4)) -> 7321 | C118: =IF((J$7<=0),"",$C$114) -> 8500 | D118: =$E117 -> 152 | E118: =IF(($J$7<=0),"",(3.6*$F$4*$C$114/($D$7/$C$7*$E$7*$J$7*60))) -> 176 | F118: =IF(($J$7<=0),"",I117*($D$7/$C$7*$E$7*$J$7*60)/(3.6*F$4)) -> 6569 | G118: =J68 -> 8500 | H118: =I69 -> 136 | I118: =J69 -> 176 | J118: =IF((J$7<=0),"",1000) -> 1000 | K118: =IF((J$7<=0),"",MAX('Leistung u. Drehmoment'!C1:M1)) -> 8500 | L118: =IF((J$7<=0),"",(3.6*$F$4*J118/($D$7/$C$7*$E$7*J$7*60))) -> 20.70407936 | M118: =IF((J$7<=0),"",(3.6*$F$4*K118/($D$7/$C$7*$E$7*J$7*60))) -> 175.9846746
A119: 6. | B119: =IF(($K$7<=0),"",E118*($D$7/$C$7*$E$7*$K$7*60)/(3.6*F$4)) ->  | C119: =IF((K$7<=0),"",$C$114) ->  | D119: =$E118 -> 176 | E119: =IF(($K$7<=0),"",(3.6*$F$4*$C$114/($D$7/$C$7*$E$7*$K$7*60))) ->  | F119: =IF(($K$7<=0),"",I118*($D$7/$C$7*$E$7*$K$7*60)/(3.6*F$4)) ->  | G119: =K68 ->  | H119: =J69 -> 176 | I119: =K69 ->  | J119: =IF((K$7<=0),"",1000) ->  | K119: =IF((K$7<=0),"",MAX('Leistung u. Drehmoment'!C1:M1)) ->  | L119: =IF((K$7<=0),"",(3.6*$F$4*J119/($D$7/$C$7*$E$7*K$7*60))) ->  | M119: =IF((K$7<=0),"",(3.6*$F$4*K119/($D$7/$C$7*$E$7*K$7*60))) -> 
A120: 7. | B120: =IF(($L$7<=0),"",E119*($D$7/$C$7*$E$7*$L$7*60)/(3.6*F$4)) ->  | C120: =IF((L$7<=0),"",$C$114) ->  | D120: =$E119 ->  | E120: =IF(($L$7<=0),"",(3.6*$F$4*$C$114/($D$7/$C$7*$E$7*$L$7*60))) ->  | F120: =IF(($L$7<=0),"",I119*($D$7/$C$7*$E$7*$L$7*60)/(3.6*F$4)) ->  | G120: =L68 ->  | H120: =K69 ->  | I120: =L69 ->  | J120: =IF((L$7<=0),"",1000) ->  | K120: =IF((L$7<=0),"",MAX('Leistung u. Drehmoment'!C1:M1)) ->  | L120: =IF((L$7<=0),"",(3.6*$F$4*J120/($D$7/$C$7*$E$7*L$7*60))) ->  | M120: =IF((L$7<=0),"",(3.6*$F$4*K120/($D$7/$C$7*$E$7*L$7*60))) -> 
A122: Vmax | C122: =IF(OR(O15="n",O15="N"),0,D122*E122) -> 183 | D122: =P12 -> 1.04 | E122: =(MAX($M$98,$M$100,$M$102,$M$104,$M$106,$M$108,$M$110)) -> 176
A123: V | D123: 0 | E123: =$C122/8*1 -> 23 | F123: =$C122/8*2 -> 46 | G123: =$C122/8*3 -> 69 | H123: =$C122/8*4 -> 92 | I123: =$C122/8*5 -> 114 | J123: =$C122/8*6 -> 137 | K123: =$C122/8*7 -> 160 | L123: =$C122/8*8 -> 183
C124: =C134 -> 10 % | D124: =IF(C146<0,E124,D$123) -> 0 | E124: =IF($C$144<D146,D124,IF(D146<0,F124,E$123)) -> 23 | F124: =IF($C$144<E146,E124,IF(E146<0,G124,F$123)) -> 46 | G124: =IF($C$144<F146,F124,IF(F146<0,H124,G$123)) -> 69 | H124: =IF($C$144<G146,G124,IF(G146<0,I124,H$123)) -> 92 | I124: =IF($C$144<H146,H124,IF(H146<0,J124,I$123)) -> 114 | J124: =IF($C$144<I146,I124,IF(I146<0,K124,J$123)) -> 137 | K124: =IF($C$144<J146,J124,IF(J146<0,L124,K$123)) -> 160 | L124: =IF($C$144<K146,K124,IF(K146<0,O124,L$123)) -> 183
C125: =C135 -> -5 % | D125: =IF(C147<0,E125,D$123) -> 69 | E125: =IF($C$144<D147,D125,IF(D147<0,F125,E$123)) -> 69 | F125: =IF($C$144<E147,E125,IF(E147<0,G125,F$123)) -> 69 | G125: =IF($C$144<F147,F125,IF(F147<0,H125,G$123)) -> 69 | H125: =IF($C$144<G147,G125,IF(G147<0,I125,H$123)) -> 92 | I125: =IF($C$144<H147,H125,IF(H147<0,J125,I$123)) -> 114 | J125: =IF($C$144<I147,I125,IF(I147<0,K125,J$123)) -> 137 | K125: =IF($C$144<J147,J125,IF(J147<0,L125,K$123)) -> 160 | L125: =IF($C$144<K147,K125,IF(K147<0,O125,L$123)) -> 183
C126: =C136 -> 0 % | D126: =IF(C148<0,E126,D$123) -> 0 | E126: =IF($C$144<D148,D126,IF(D148<0,F126,E$123)) -> 23 | F126: =IF($C$144<E148,E126,IF(E148<0,G126,F$123)) -> 46 | G126: =IF($C$144<F148,F126,IF(F148<0,H126,G$123)) -> 69 | H126: =IF($C$144<G148,G126,IF(G148<0,I126,H$123)) -> 92 | I126: =IF($C$144<H148,H126,IF(H148<0,J126,I$123)) -> 114 | J126: =IF($C$144<I148,I126,IF(I148<0,K126,J$123)) -> 137 | K126: =IF($C$144<J148,J126,IF(J148<0,L126,K$123)) -> 160 | L126: =IF($C$144<K148,K126,IF(K148<0,O126,L$123)) -> 183
C127: =C137 -> 5 % | D127: =IF(C149<0,E127,D$123) -> 0 | E127: =IF($C$144<D149,D127,IF(D149<0,F127,E$123)) -> 23 | F127: =IF($C$144<E149,E127,IF(E149<0,G127,F$123)) -> 46 | G127: =IF($C$144<F149,F127,IF(F149<0,H127,G$123)) -> 69 | H127: =IF($C$144<G149,G127,IF(G149<0,I127,H$123)) -> 92 | I127: =IF($C$144<H149,H127,IF(H149<0,J127,I$123)) -> 114 | J127: =IF($C$144<I149,I127,IF(I149<0,K127,J$123)) -> 137 | K127: =IF($C$144<J149,J127,IF(J149<0,L127,K$123)) -> 160 | L127: =IF($C$144<K149,K127,IF(K149<0,O127,L$123)) -> 183
C128: =C138 -> 33 % | D128: =IF(C150<0,E128,D$123) -> 0 | E128: =IF($C$144<D150,D128,IF(D150<0,F128,E$123)) -> 23 | F128: =IF($C$144<E150,E128,IF(E150<0,G128,F$123)) -> 46 | G128: =IF($C$144<F150,F128,IF(F150<0,H128,G$123)) -> 69 | H128: =IF($C$144<G150,G128,IF(G150<0,I128,H$123)) -> 92 | I128: =IF($C$144<H150,H128,IF(H150<0,J128,I$123)) -> 114 | J128: =IF($C$144<I150,I128,IF(I150<0,K128,J$123)) -> 137 | K128: =IF($C$144<J150,J128,IF(J150<0,L128,K$123)) -> 160 | L128: =IF($C$144<K150,K128,IF(K150<0,O128,L$123)) -> 183
C129: =C139 -> 47 % | D129: =IF(C151<0,E129,D$123) -> 0 | E129: =IF($C$144<D151,D129,IF(D151<0,F129,E$123)) -> 23 | F129: =IF($C$144<E151,E129,IF(E151<0,G129,F$123)) -> 46 | G129: =IF($C$144<F151,F129,IF(F151<0,H129,G$123)) -> 69 | H129: =IF($C$144<G151,G129,IF(G151<0,I129,H$123)) -> 92 | I129: =IF($C$144<H151,H129,IF(H151<0,J129,I$123)) -> 114 | J129: =IF($C$144<I151,I129,IF(I151<0,K129,J$123)) -> 137 | K129: =IF($C$144<J151,J129,IF(J151<0,L129,K$123)) -> 160 | L129: =IF($C$144<K151,K129,IF(K151<0,O129,L$123)) -> 183
C130: =C140 -> 74 % | D130: =IF(C152<0,E130,D$123) -> 0 | E130: =IF($C$144<D152,D130,IF(D152<0,F130,E$123)) -> 23 | F130: =IF($C$144<E152,E130,IF(E152<0,G130,F$123)) -> 46 | G130: =IF($C$144<F152,F130,IF(F152<0,H130,G$123)) -> 69 | H130: =IF($C$144<G152,G130,IF(G152<0,I130,H$123)) -> 92 | I130: =IF($C$144<H152,H130,IF(H152<0,J130,I$123)) -> 114 | J130: =IF($C$144<I152,I130,IF(I152<0,K130,J$123)) -> 137 | K130: =IF($C$144<J152,J130,IF(J152<0,L130,K$123)) -> 160 | L130: =IF($C$144<K152,K130,IF(K152<0,O130,L$123)) -> 183
C131: =C141 -> 100 % | D131: =IF(C153<0,E131,D$123) -> 0 | E131: =IF($C$144<D153,D131,IF(D153<0,F131,E$123)) -> 23 | F131: =IF($C$144<E153,E131,IF(E153<0,G131,F$123)) -> 46 | G131: =IF($C$144<F153,F131,IF(F153<0,H131,G$123)) -> 69 | H131: =IF($C$144<G153,G131,IF(G153<0,I131,H$123)) -> 92 | I131: =IF($C$144<H153,H131,IF(H153<0,J131,I$123)) -> 114 | J131: =IF($C$144<I153,I131,IF(I153<0,K131,J$123)) -> 137 | K131: =IF($C$144<J153,J131,IF(J153<0,L131,K$123)) -> 160 | L131: =IF($C$144<K153,K131,IF(K153<0,O131,L$123)) -> 183
C132: =C142 -> 190 % | D132: =IF(C154<0,E132,D$123) -> 0 | E132: =IF($C$144<D154,D132,IF(D154<0,F132,E$123)) -> 23 | F132: =IF($C$144<E154,E132,IF(E154<0,G132,F$123)) -> 46 | G132: =IF($C$144<F154,F132,IF(F154<0,H132,G$123)) -> 69 | H132: =IF($C$144<G154,G132,IF(G154<0,I132,H$123)) -> 92 | I132: =IF($C$144<H154,H132,IF(H154<0,J132,I$123)) -> 114 | J132: =IF($C$144<I154,I132,IF(I154<0,K132,J$123)) -> 137 | K132: =IF($C$144<J154,J132,IF(J154<0,L132,K$123)) -> 160 | L132: =IF($C$144<K154,K132,IF(K154<0,O132,L$123)) -> 183
C133: =C143 -> 9999 % | D133: =IF(C155<0,E133,D$123) -> 0 | E133: =IF($C$144<D155,D133,IF(D155<0,F133,E$123)) -> 23 | F133: =IF($C$144<E155,E133,IF(E155<0,G133,F$123)) -> 46 | G133: =IF($C$144<F155,F133,IF(F155<0,H133,G$123)) -> 69 | H133: =IF($C$144<G155,G133,IF(G155<0,I133,H$123)) -> 92 | I133: =IF($C$144<H155,H133,IF(H155<0,J133,I$123)) -> 114 | J133: =IF($C$144<I155,I133,IF(I155<0,K133,J$123)) -> 137 | K133: =IF($C$144<J155,J133,IF(J155<0,L133,K$123)) -> 160 | L133: =IF($C$144<K155,K133,IF(K155<0,O133,L$123)) -> 183
A134: F (Diagramm) | C134: =O25 -> 10 % | D134: =IF($C$144<C146,"",IF(C146<0,E134,C146)) -> 244 | E134: =IF($C$144<D146,D134,IF(D146<0,F134,D146)) -> 257 | F134: =IF($C$144<E146,E134,IF(E146<0,G134,E146)) -> 297 | G134: =IF($C$144<F146,F134,IF(F146<0,H134,F146)) -> 363 | H134: =IF($C$144<G146,G134,IF(G146<0,I134,G146)) -> 456 | I134: =IF($C$144<H146,H134,IF(H146<0,J134,H146)) -> 576 | J134: =IF($C$144<I146,I134,IF(I146<0,K134,I146)) -> 722 | K134: =IF($C$144<J146,J134,IF(J146<0,L134,J146)) -> 894 | L134: =IF($C$144<K146,K134,IF(K146<0,O134,K146)) -> 1093
C135: =O24 -> -5 % | D135: =IF($C$144<C147,"",IF(C147<0,E135,C147)) -> 34 | E135: =IF($C$144<D147,D135,IF(D147<0,F135,D147)) -> 34 | F135: =IF($C$144<E147,E135,IF(E147<0,G135,E147)) -> 34 | G135: =IF($C$144<F147,F135,IF(F147<0,H135,F147)) -> 34 | H135: =IF($C$144<G147,G135,IF(G147<0,I135,G147)) -> 126 | I135: =IF($C$144<H147,H135,IF(H147<0,J135,H147)) -> 246 | J135: =IF($C$144<I147,I135,IF(I147<0,K135,I147)) -> 392 | K135: =IF($C$144<J147,J135,IF(J147<0,L135,J147)) -> 565 | L135: =IF($C$144<K147,K135,IF(K147<0,O135,K147)) -> 764
C136: =O23 -> 0 % | D136: =IF($C$144<C148,"",IF(C148<0,E136,C148)) -> 24 | E136: =IF($C$144<D148,D136,IF(D148<0,F136,D148)) -> 38 | F136: =IF($C$144<E148,E136,IF(E148<0,G136,E148)) -> 77 | G136: =IF($C$144<F148,F136,IF(F148<0,H136,F148)) -> 144 | H136: =IF($C$144<G148,G136,IF(G148<0,I136,G148)) -> 237 | I136: =IF($C$144<H148,H136,IF(H148<0,J136,H148)) -> 356 | J136: =IF($C$144<I148,I136,IF(I148<0,K136,I148)) -> 502 | K136: =IF($C$144<J148,J136,IF(J148<0,L136,J148)) -> 675 | L136: =IF($C$144<K148,K136,IF(K148<0,O136,K148)) -> 874
C137: =O22 -> 5 % | D137: =IF($C$144<C149,"",IF(C149<0,E137,C149)) -> 134 | E137: =IF($C$144<D149,D137,IF(D149<0,F137,D149)) -> 148 | F137: =IF($C$144<E149,E137,IF(E149<0,G137,E149)) -> 188 | G137: =IF($C$144<F149,F137,IF(F149<0,H137,F149)) -> 254 | H137: =IF($C$144<G149,G137,IF(G149<0,I137,G149)) -> 347 | I137: =IF($C$144<H149,H137,IF(H149<0,J137,H149)) -> 466 | J137: =IF($C$144<I149,I137,IF(I149<0,K137,I149)) -> 612 | K137: =IF($C$144<J149,J137,IF(J149<0,L137,J149)) -> 785 | L137: =IF($C$144<K149,K137,IF(K149<0,O137,K149)) -> 984
C138: =O21 -> 33 % | D138: =IF($C$144<C150,"",IF(C150<0,E138,C150)) -> 715 | E138: =IF($C$144<D150,D138,IF(D150<0,F138,D150)) -> 728 | F138: =IF($C$144<E150,E138,IF(E150<0,G138,E150)) -> 768 | G138: =IF($C$144<F150,F138,IF(F150<0,H138,F150)) -> 834 | H138: =IF($C$144<G150,G138,IF(G150<0,I138,G150)) -> 927 | I138: =IF($C$144<H150,H138,IF(H150<0,J138,H150)) -> 1047 | J138: =IF($C$144<I150,I138,IF(I150<0,K138,I150)) -> 1193 | K138: =IF($C$144<J150,J138,IF(J150<0,L138,J150)) -> 1365 | L138: =IF($C$144<K150,K138,IF(K150<0,O138,K150)) -> 1564
C139: =O20 -> 47 % | D139: =IF($C$144<C151,"",IF(C151<0,E139,C151)) -> 961 | E139: =IF($C$144<D151,D139,IF(D151<0,F139,D151)) -> 974 | F139: =IF($C$144<E151,E139,IF(E151<0,G139,E151)) -> 1014 | G139: =IF($C$144<F151,F139,IF(F151<0,H139,F151)) -> 1080 | H139: =IF($C$144<G151,G139,IF(G151<0,I139,G151)) -> 1173 | I139: =IF($C$144<H151,H139,IF(H151<0,J139,H151)) -> 1293 | J139: =IF($C$144<I151,I139,IF(I151<0,K139,I151)) -> 1439 | K139: =IF($C$144<J151,J139,IF(J151<0,L139,J151)) -> 1611 | L139: =IF($C$144<K151,K139,IF(K151<0,O139,K151)) -> 1811
C140: =O19 -> 74 % | D140: =IF($C$144<C152,"",IF(C152<0,E140,C152)) -> 1332 | E140: =IF($C$144<D152,D140,IF(D152<0,F140,D152)) -> 1346 | F140: =IF($C$144<E152,E140,IF(E152<0,G140,E152)) -> 1386 | G140: =IF($C$144<F152,F140,IF(F152<0,H140,F152)) -> 1452 | H140: =IF($C$144<G152,G140,IF(G152<0,I140,G152)) -> 1545 | I140: =IF($C$144<H152,H140,IF(H152<0,J140,H152)) -> 1664 | J140: =IF($C$144<I152,I140,IF(I152<0,K140,I152)) -> 1810 | K140: =IF($C$144<J152,J140,IF(J152<0,L140,J152)) -> 1983 | L140: =IF($C$144<K152,K140,IF(K152<0,O140,K152)) -> 2182
C141: =O18 -> 100 % | D141: =IF($C$144<C153,"",IF(C153<0,E141,C153)) -> 1578 | E141: =IF($C$144<D153,D141,IF(D153<0,F141,D153)) -> 1591 | F141: =IF($C$144<E153,E141,IF(E153<0,G141,E153)) -> 1631 | G141: =IF($C$144<F153,F141,IF(F153<0,H141,F153)) -> 1697 | H141: =IF($C$144<G153,G141,IF(G153<0,I141,G153)) -> 1790 | I141: =IF($C$144<H153,H141,IF(H153<0,J141,H153)) -> 1910 | J141: =IF($C$144<I153,I141,IF(I153<0,K141,I153)) -> 2056 | K141: =IF($C$144<J153,J141,IF(J153<0,L141,J153)) -> 2228 | L141: =IF($C$144<K153,K141,IF(K153<0,O141,K153)) -> 2428
C142: =O17 -> 190 % | D142: =IF($C$144<C154,"",IF(C154<0,E142,C154)) -> 1965 | E142: =IF($C$144<D154,D142,IF(D154<0,F142,D154)) -> 1978 | F142: =IF($C$144<E154,E142,IF(E154<0,G142,E154)) -> 2018 | G142: =IF($C$144<F154,F142,IF(F154<0,H142,F154)) -> 2084 | H142: =IF($C$144<G154,G142,IF(G154<0,I142,G154)) -> 2177 | I142: =IF($C$144<H154,H142,IF(H154<0,J142,H154)) -> 2296 | J142: =IF($C$144<I154,I142,IF(I154<0,K142,I154)) -> 2443 | K142: =IF($C$144<J154,J142,IF(J154<0,L142,J154)) -> 2615 | L142: =IF($C$144<K154,K142,IF(K154<0,O142,K154)) -> 2814
C143: =O16 -> 9999 % | D143: =IF($C$144<C155,"",IF(C155<0,E143,C155)) -> 2207 | E143: =IF($C$144<D155,D143,IF(D155<0,F143,D155)) -> 2221 | F143: =IF($C$144<E155,E143,IF(E155<0,G143,E155)) -> 2260 | G143: =IF($C$144<F155,F143,IF(F155<0,H143,F155)) -> 2327 | H143: =IF($C$144<G155,G143,IF(G155<0,I143,G155)) -> 2420 | I143: =IF($C$144<H155,H143,IF(H155<0,J143,H155)) -> 2539 | J143: =IF($C$144<I155,I143,IF(I155<0,K143,I155)) -> 2685 | K143: =IF($C$144<J155,J143,IF(J155<0,L143,J155)) -> 2858 | L143: =IF($C$144<K155,K143,IF(K155<0,O143,K155)) -> 3057
A144: Fmax | C144: =D144*E144 -> 3246 | D144: =P11 -> 1.02 | E144: =MAX(C98:M111) -> 3183
A146: F (Rechnung) | C146: =1.293/2*(D$123/3.6)^2*$N$4*$L$4+$I$4*9.81*$G$4*COS(ATAN($C134))+$I$4*9.81*SIN(ATAN($C134)) -> 244 | D146: =1.293/2*(E$123/3.6)^2*$N$4*$L$4+$I$4*9.81*$G$4*COS(ATAN($C134))+$I$4*9.81*SIN(ATAN($C134)) -> 257 | E146: =1.293/2*(F$123/3.6)^2*$N$4*$L$4+$I$4*9.81*$G$4*COS(ATAN($C134))+$I$4*9.81*SIN(ATAN($C134)) -> 297 | F146: =1.293/2*(G$123/3.6)^2*$N$4*$L$4+$I$4*9.81*$G$4*COS(ATAN($C134))+$I$4*9.81*SIN(ATAN($C134)) -> 363 | G146: =1.293/2*(H$123/3.6)^2*$N$4*$L$4+$I$4*9.81*$G$4*COS(ATAN($C134))+$I$4*9.81*SIN(ATAN($C134)) -> 456 | H146: =1.293/2*(I$123/3.6)^2*$N$4*$L$4+$I$4*9.81*$G$4*COS(ATAN($C134))+$I$4*9.81*SIN(ATAN($C134)) -> 576 | I146: =1.293/2*(J$123/3.6)^2*$N$4*$L$4+$I$4*9.81*$G$4*COS(ATAN($C134))+$I$4*9.81*SIN(ATAN($C134)) -> 722 | J146: =1.293/2*(K$123/3.6)^2*$N$4*$L$4+$I$4*9.81*$G$4*COS(ATAN($C134))+$I$4*9.81*SIN(ATAN($C134)) -> 894 | K146: =1.293/2*(L$123/3.6)^2*$N$4*$L$4+$I$4*9.81*$G$4*COS(ATAN($C134))+$I$4*9.81*SIN(ATAN($C134)) -> 1093
C147: =1.293/2*(D$123/3.6)^2*$N$4*$L$4+$I$4*9.81*$G$4*COS(ATAN($C135))+$I$4*9.81*SIN(ATAN($C135)) -> -86 | D147: =1.293/2*(E$123/3.6)^2*$N$4*$L$4+$I$4*9.81*$G$4*COS(ATAN($C135))+$I$4*9.81*SIN(ATAN($C135)) -> -73 | E147: =1.293/2*(F$123/3.6)^2*$N$4*$L$4+$I$4*9.81*$G$4*COS(ATAN($C135))+$I$4*9.81*SIN(ATAN($C135)) -> -33 | F147: =1.293/2*(G$123/3.6)^2*$N$4*$L$4+$I$4*9.81*$G$4*COS(ATAN($C135))+$I$4*9.81*SIN(ATAN($C135)) -> 34 | G147: =1.293/2*(H$123/3.6)^2*$N$4*$L$4+$I$4*9.81*$G$4*COS(ATAN($C135))+$I$4*9.81*SIN(ATAN($C135)) -> 126 | H147: =1.293/2*(I$123/3.6)^2*$N$4*$L$4+$I$4*9.81*$G$4*COS(ATAN($C135))+$I$4*9.81*SIN(ATAN($C135)) -> 246 | I147: =1.293/2*(J$123/3.6)^2*$N$4*$L$4+$I$4*9.81*$G$4*COS(ATAN($C135))+$I$4*9.81*SIN(ATAN($C135)) -> 392 | J147: =1.293/2*(K$123/3.6)^2*$N$4*$L$4+$I$4*9.81*$G$4*COS(ATAN($C135))+$I$4*9.81*SIN(ATAN($C135)) -> 565 | K147: =1.293/2*(L$123/3.6)^2*$N$4*$L$4+$I$4*9.81*$G$4*COS(ATAN($C135))+$I$4*9.81*SIN(ATAN($C135)) -> 764
C148: =1.293/2*(D$123/3.6)^2*$N$4*$L$4+$I$4*9.81*$G$4*COS(ATAN($C136))+$I$4*9.81*SIN(ATAN($C136)) -> 24 | D148: =1.293/2*(E$123/3.6)^2*$N$4*$L$4+$I$4*9.81*$G$4*COS(ATAN($C136))+$I$4*9.81*SIN(ATAN($C136)) -> 38 | E148: =1.293/2*(F$123/3.6)^2*$N$4*$L$4+$I$4*9.81*$G$4*COS(ATAN($C136))+$I$4*9.81*SIN(ATAN($C136)) -> 77 | F148: =1.293/2*(G$123/3.6)^2*$N$4*$L$4+$I$4*9.81*$G$4*COS(ATAN($C136))+$I$4*9.81*SIN(ATAN($C136)) -> 144 | G148: =1.293/2*(H$123/3.6)^2*$N$4*$L$4+$I$4*9.81*$G$4*COS(ATAN($C136))+$I$4*9.81*SIN(ATAN($C136)) -> 237 | H148: =1.293/2*(I$123/3.6)^2*$N$4*$L$4+$I$4*9.81*$G$4*COS(ATAN($C136))+$I$4*9.81*SIN(ATAN($C136)) -> 356 | I148: =1.293/2*(J$123/3.6)^2*$N$4*$L$4+$I$4*9.81*$G$4*COS(ATAN($C136))+$I$4*9.81*SIN(ATAN($C136)) -> 502 | J148: =1.293/2*(K$123/3.6)^2*$N$4*$L$4+$I$4*9.81*$G$4*COS(ATAN($C136))+$I$4*9.81*SIN(ATAN($C136)) -> 675 | K148: =1.293/2*(L$123/3.6)^2*$N$4*$L$4+$I$4*9.81*$G$4*COS(ATAN($C136))+$I$4*9.81*SIN(ATAN($C136)) -> 874
C149: =1.293/2*(D$123/3.6)^2*$N$4*$L$4+$I$4*9.81*$G$4*COS(ATAN($C137))+$I$4*9.81*SIN(ATAN($C137)) -> 134 | D149: =1.293/2*(E$123/3.6)^2*$N$4*$L$4+$I$4*9.81*$G$4*COS(ATAN($C137))+$I$4*9.81*SIN(ATAN($C137)) -> 148 | E149: =1.293/2*(F$123/3.6)^2*$N$4*$L$4+$I$4*9.81*$G$4*COS(ATAN($C137))+$I$4*9.81*SIN(ATAN($C137)) -> 188 | F149: =1.293/2*(G$123/3.6)^2*$N$4*$L$4+$I$4*9.81*$G$4*COS(ATAN($C137))+$I$4*9.81*SIN(ATAN($C137)) -> 254 | G149: =1.293/2*(H$123/3.6)^2*$N$4*$L$4+$I$4*9.81*$G$4*COS(ATAN($C137))+$I$4*9.81*SIN(ATAN($C137)) -> 347 | H149: =1.293/2*(I$123/3.6)^2*$N$4*$L$4+$I$4*9.81*$G$4*COS(ATAN($C137))+$I$4*9.81*SIN(ATAN($C137)) -> 466 | I149: =1.293/2*(J$123/3.6)^2*$N$4*$L$4+$I$4*9.81*$G$4*COS(ATAN($C137))+$I$4*9.81*SIN(ATAN($C137)) -> 612 | J149: =1.293/2*(K$123/3.6)^2*$N$4*$L$4+$I$4*9.81*$G$4*COS(ATAN($C137))+$I$4*9.81*SIN(ATAN($C137)) -> 785 | K149: =1.293/2*(L$123/3.6)^2*$N$4*$L$4+$I$4*9.81*$G$4*COS(ATAN($C137))+$I$4*9.81*SIN(ATAN($C137)) -> 984
C150: =1.293/2*(D$123/3.6)^2*$N$4*$L$4+$I$4*9.81*$G$4*COS(ATAN($C138))+$I$4*9.81*SIN(ATAN($C138)) -> 715 | D150: =1.293/2*(E$123/3.6)^2*$N$4*$L$4+$I$4*9.81*$G$4*COS(ATAN($C138))+$I$4*9.81*SIN(ATAN($C138)) -> 728 | E150: =1.293/2*(F$123/3.6)^2*$N$4*$L$4+$I$4*9.81*$G$4*COS(ATAN($C138))+$I$4*9.81*SIN(ATAN($C138)) -> 768 | F150: =1.293/2*(G$123/3.6)^2*$N$4*$L$4+$I$4*9.81*$G$4*COS(ATAN($C138))+$I$4*9.81*SIN(ATAN($C138)) -> 834 | G150: =1.293/2*(H$123/3.6)^2*$N$4*$L$4+$I$4*9.81*$G$4*COS(ATAN($C138))+$I$4*9.81*SIN(ATAN($C138)) -> 927 | H150: =1.293/2*(I$123/3.6)^2*$N$4*$L$4+$I$4*9.81*$G$4*COS(ATAN($C138))+$I$4*9.81*SIN(ATAN($C138)) -> 1047 | I150: =1.293/2*(J$123/3.6)^2*$N$4*$L$4+$I$4*9.81*$G$4*COS(ATAN($C138))+$I$4*9.81*SIN(ATAN($C138)) -> 1193 | J150: =1.293/2*(K$123/3.6)^2*$N$4*$L$4+$I$4*9.81*$G$4*COS(ATAN($C138))+$I$4*9.81*SIN(ATAN($C138)) -> 1365 | K150: =1.293/2*(L$123/3.6)^2*$N$4*$L$4+$I$4*9.81*$G$4*COS(ATAN($C138))+$I$4*9.81*SIN(ATAN($C138)) -> 1564
C151: =1.293/2*(D$123/3.6)^2*$N$4*$L$4+$I$4*9.81*$G$4*COS(ATAN($C139))+$I$4*9.81*SIN(ATAN($C139)) -> 961 | D151: =1.293/2*(E$123/3.6)^2*$N$4*$L$4+$I$4*9.81*$G$4*COS(ATAN($C139))+$I$4*9.81*SIN(ATAN($C139)) -> 974 | E151: =1.293/2*(F$123/3.6)^2*$N$4*$L$4+$I$4*9.81*$G$4*COS(ATAN($C139))+$I$4*9.81*SIN(ATAN($C139)) -> 1014 | F151: =1.293/2*(G$123/3.6)^2*$N$4*$L$4+$I$4*9.81*$G$4*COS(ATAN($C139))+$I$4*9.81*SIN(ATAN($C139)) -> 1080 | G151: =1.293/2*(H$123/3.6)^2*$N$4*$L$4+$I$4*9.81*$G$4*COS(ATAN($C139))+$I$4*9.81*SIN(ATAN($C139)) -> 1173 | H151: =1.293/2*(I$123/3.6)^2*$N$4*$L$4+$I$4*9.81*$G$4*COS(ATAN($C139))+$I$4*9.81*SIN(ATAN($C139)) -> 1293 | I151: =1.293/2*(J$123/3.6)^2*$N$4*$L$4+$I$4*9.81*$G$4*COS(ATAN($C139))+$I$4*9.81*SIN(ATAN($C139)) -> 1439 | J151: =1.293/2*(K$123/3.6)^2*$N$4*$L$4+$I$4*9.81*$G$4*COS(ATAN($C139))+$I$4*9.81*SIN(ATAN($C139)) -> 1611 | K151: =1.293/2*(L$123/3.6)^2*$N$4*$L$4+$I$4*9.81*$G$4*COS(ATAN($C139))+$I$4*9.81*SIN(ATAN($C139)) -> 1811
C152: =1.293/2*(D$123/3.6)^2*$N$4*$L$4+$I$4*9.81*$G$4*COS(ATAN($C140))+$I$4*9.81*SIN(ATAN($C140)) -> 1332 | D152: =1.293/2*(E$123/3.6)^2*$N$4*$L$4+$I$4*9.81*$G$4*COS(ATAN($C140))+$I$4*9.81*SIN(ATAN($C140)) -> 1346 | E152: =1.293/2*(F$123/3.6)^2*$N$4*$L$4+$I$4*9.81*$G$4*COS(ATAN($C140))+$I$4*9.81*SIN(ATAN($C140)) -> 1386 | F152: =1.293/2*(G$123/3.6)^2*$N$4*$L$4+$I$4*9.81*$G$4*COS(ATAN($C140))+$I$4*9.81*SIN(ATAN($C140)) -> 1452 | G152: =1.293/2*(H$123/3.6)^2*$N$4*$L$4+$I$4*9.81*$G$4*COS(ATAN($C140))+$I$4*9.81*SIN(ATAN($C140)) -> 1545 | H152: =1.293/2*(I$123/3.6)^2*$N$4*$L$4+$I$4*9.81*$G$4*COS(ATAN($C140))+$I$4*9.81*SIN(ATAN($C140)) -> 1664 | I152: =1.293/2*(J$123/3.6)^2*$N$4*$L$4+$I$4*9.81*$G$4*COS(ATAN($C140))+$I$4*9.81*SIN(ATAN($C140)) -> 1810 | J152: =1.293/2*(K$123/3.6)^2*$N$4*$L$4+$I$4*9.81*$G$4*COS(ATAN($C140))+$I$4*9.81*SIN(ATAN($C140)) -> 1983 | K152: =1.293/2*(L$123/3.6)^2*$N$4*$L$4+$I$4*9.81*$G$4*COS(ATAN($C140))+$I$4*9.81*SIN(ATAN($C140)) -> 2182
C153: =1.293/2*(D$123/3.6)^2*$N$4*$L$4+$I$4*9.81*$G$4*COS(ATAN($C141))+$I$4*9.81*SIN(ATAN($C141)) -> 1578 | D153: =1.293/2*(E$123/3.6)^2*$N$4*$L$4+$I$4*9.81*$G$4*COS(ATAN($C141))+$I$4*9.81*SIN(ATAN($C141)) -> 1591 | E153: =1.293/2*(F$123/3.6)^2*$N$4*$L$4+$I$4*9.81*$G$4*COS(ATAN($C141))+$I$4*9.81*SIN(ATAN($C141)) -> 1631 | F153: =1.293/2*(G$123/3.6)^2*$N$4*$L$4+$I$4*9.81*$G$4*COS(ATAN($C141))+$I$4*9.81*SIN(ATAN($C141)) -> 1697 | G153: =1.293/2*(H$123/3.6)^2*$N$4*$L$4+$I$4*9.81*$G$4*COS(ATAN($C141))+$I$4*9.81*SIN(ATAN($C141)) -> 1790 | H153: =1.293/2*(I$123/3.6)^2*$N$4*$L$4+$I$4*9.81*$G$4*COS(ATAN($C141))+$I$4*9.81*SIN(ATAN($C141)) -> 1910 | I153: =1.293/2*(J$123/3.6)^2*$N$4*$L$4+$I$4*9.81*$G$4*COS(ATAN($C141))+$I$4*9.81*SIN(ATAN($C141)) -> 2056 | J153: =1.293/2*(K$123/3.6)^2*$N$4*$L$4+$I$4*9.81*$G$4*COS(ATAN($C141))+$I$4*9.81*SIN(ATAN($C141)) -> 2228 | K153: =1.293/2*(L$123/3.6)^2*$N$4*$L$4+$I$4*9.81*$G$4*COS(ATAN($C141))+$I$4*9.81*SIN(ATAN($C141)) -> 2428
C154: =1.293/2*(D$123/3.6)^2*$N$4*$L$4+$I$4*9.81*$G$4*COS(ATAN($C142))+$I$4*9.81*SIN(ATAN($C142)) -> 1965 | D154: =1.293/2*(E$123/3.6)^2*$N$4*$L$4+$I$4*9.81*$G$4*COS(ATAN($C142))+$I$4*9.81*SIN(ATAN($C142)) -> 1978 | E154: =1.293/2*(F$123/3.6)^2*$N$4*$L$4+$I$4*9.81*$G$4*COS(ATAN($C142))+$I$4*9.81*SIN(ATAN($C142)) -> 2018 | F154: =1.293/2*(G$123/3.6)^2*$N$4*$L$4+$I$4*9.81*$G$4*COS(ATAN($C142))+$I$4*9.81*SIN(ATAN($C142)) -> 2084 | G154: =1.293/2*(H$123/3.6)^2*$N$4*$L$4+$I$4*9.81*$G$4*COS(ATAN($C142))+$I$4*9.81*SIN(ATAN($C142)) -> 2177 | H154: =1.293/2*(I$123/3.6)^2*$N$4*$L$4+$I$4*9.81*$G$4*COS(ATAN($C142))+$I$4*9.81*SIN(ATAN($C142)) -> 2296 | I154: =1.293/2*(J$123/3.6)^2*$N$4*$L$4+$I$4*9.81*$G$4*COS(ATAN($C142))+$I$4*9.81*SIN(ATAN($C142)) -> 2443 | J154: =1.293/2*(K$123/3.6)^2*$N$4*$L$4+$I$4*9.81*$G$4*COS(ATAN($C142))+$I$4*9.81*SIN(ATAN($C142)) -> 2615 | K154: =1.293/2*(L$123/3.6)^2*$N$4*$L$4+$I$4*9.81*$G$4*COS(ATAN($C142))+$I$4*9.81*SIN(ATAN($C142)) -> 2814
C155: =1.293/2*(D$123/3.6)^2*$N$4*$L$4+$I$4*9.81*$G$4*COS(ATAN($C143))+$I$4*9.81*SIN(ATAN($C143)) -> 2207 | D155: =1.293/2*(E$123/3.6)^2*$N$4*$L$4+$I$4*9.81*$G$4*COS(ATAN($C143))+$I$4*9.81*SIN(ATAN($C143)) -> 2221 | E155: =1.293/2*(F$123/3.6)^2*$N$4*$L$4+$I$4*9.81*$G$4*COS(ATAN($C143))+$I$4*9.81*SIN(ATAN($C143)) -> 2260 | F155: =1.293/2*(G$123/3.6)^2*$N$4*$L$4+$I$4*9.81*$G$4*COS(ATAN($C143))+$I$4*9.81*SIN(ATAN($C143)) -> 2327 | G155: =1.293/2*(H$123/3.6)^2*$N$4*$L$4+$I$4*9.81*$G$4*COS(ATAN($C143))+$I$4*9.81*SIN(ATAN($C143)) -> 2420 | H155: =1.293/2*(I$123/3.6)^2*$N$4*$L$4+$I$4*9.81*$G$4*COS(ATAN($C143))+$I$4*9.81*SIN(ATAN($C143)) -> 2539 | I155: =1.293/2*(J$123/3.6)^2*$N$4*$L$4+$I$4*9.81*$G$4*COS(ATAN($C143))+$I$4*9.81*SIN(ATAN($C143)) -> 2685 | J155: =1.293/2*(K$123/3.6)^2*$N$4*$L$4+$I$4*9.81*$G$4*COS(ATAN($C143))+$I$4*9.81*SIN(ATAN($C143)) -> 2858 | K155: =1.293/2*(L$123/3.6)^2*$N$4*$L$4+$I$4*9.81*$G$4*COS(ATAN($C143))+$I$4*9.81*SIN(ATAN($C143)) -> 3057
A158: P | B158: ='Leistung u. Drehmoment'!C5 -> 11 | C158: ='Leistung u. Drehmoment'!D5 -> 20 | D158: ='Leistung u. Drehmoment'!E5 -> 25 | E158: ='Leistung u. Drehmoment'!F5 -> 30 | F158: ='Leistung u. Drehmoment'!G5 -> 35 | G158: ='Leistung u. Drehmoment'!H5 -> 39 | H158: ='Leistung u. Drehmoment'!I5 -> 42 | I158: ='Leistung u. Drehmoment'!J5 -> 43.5 | J158: ='Leistung u. Drehmoment'!K5 -> 43 | K158: ='Leistung u. Drehmoment'!L5 -> 40 | L158: =MAX(B158:K158) -> 43.5
A159: M | B159: ='Leistung u. Drehmoment'!C4 -> 35.01666667 | C159: ='Leistung u. Drehmoment'!D4 -> 47.75 | D159: ='Leistung u. Drehmoment'!E4 -> 53.05555556 | E159: ='Leistung u. Drehmoment'!F4 -> 57.3 | F159: ='Leistung u. Drehmoment'!G4 -> 60.77272727 | G159: ='Leistung u. Drehmoment'!H4 -> 62.075 | H159: ='Leistung u. Drehmoment'!I4 -> 61.70769231 | I159: ='Leistung u. Drehmoment'!J4 -> 59.34642857 | J159: ='Leistung u. Drehmoment'!K4 -> 54.75333333 | K159: ='Leistung u. Drehmoment'!L4 -> 47.75 | L159: =HLOOKUP(L158,B158:K160,2,FALSE()) -> 59.34642857
A160: n | B160: ='Leistung u. Drehmoment'!C1 -> 3000 | C160: ='Leistung u. Drehmoment'!D1 -> 4000 | D160: ='Leistung u. Drehmoment'!E1 -> 4500 | E160: ='Leistung u. Drehmoment'!F1 -> 5000 | F160: ='Leistung u. Drehmoment'!G1 -> 5500 | G160: ='Leistung u. Drehmoment'!H1 -> 6000 | H160: ='Leistung u. Drehmoment'!I1 -> 6500 | I160: ='Leistung u. Drehmoment'!J1 -> 7000 | J160: ='Leistung u. Drehmoment'!K1 -> 7500 | K160: ='Leistung u. Drehmoment'!L1 -> 8000 | L160: =HLOOKUP(L158,B158:K160,3,FALSE()) -> 7000
A162: v | B162: =MIN(M114:M120)/O11 -> 50.08259514 | C162: =B162+($K162-$B162)/9 -> 64.07171507 | D162: =C162+($K162-$B162)/9 -> 78.06083501 | E162: =D162+($K162-$B162)/9 -> 92.04995495 | F162: =E162+($K162-$B162)/9 -> 106.0390749 | G162: =F162+($K162-$B162)/9 -> 120.0281948 | H162: =G162+($K162-$B162)/9 -> 134.0173148 | I162: =H162+($K162-$B162)/9 -> 148.0064347 | J162: =I162+($K162-$B162)/9 -> 161.9955546 | K162: =MAX(M114:M120) -> 175.9846746
A163: F | B163: =3600*$L$158/B162*$B$164 -> 2881.378243 | C163: =3600*$L$158/C162*$B$164 -> 2252.271534 | D163: =3600*$L$158/D162*$B$164 -> 1848.646635 | E163: =3600*$L$158/E162*$B$164 -> 1567.702017 | F163: =3600*$L$158/F162*$B$164 -> 1360.884185 | G163: =3600*$L$158/G162*$B$164 -> 1202.275017 | H163: =3600*$L$158/H162*$B$164 -> 1076.778029 | I163: =3600*$L$158/I162*$B$164 -> 975.0042307 | J163: =3600*$L$158/J162*$B$164 -> 890.8077775 | K163: =3600*$L$158/K162*$B$164 -> 819.9969705
A164: Eta | B164: =C8*E8*MAX(F8:L8) -> 0.9215
